{"text_format":"1","workbook":"xlsx","n_sheets":3,"sheets":["Dati input","PAM","Proposta contrattuale"],"not_rendered":{"charts":0,"images":2,"macros":1,"external_links":0,"defined_names":1,"comments":0,"pivot_tables":0},"unopened":[],"bounds":{"document_bytes":16777216,"sheet_cells":100000,"rows_first":2000,"rows_last":500,"rows_between":2000,"halvings":0,"cell_chars":16384,"cell_head_chars":4096},"cells_cut":0,"cells_raw":0,"read":"whole","date_system":"1900"}

{"sheet":"Dati input","index":0,"n_rows":43,"n_cols":43,"rows_kept":43,"cut":false,"hidden":false,"merged":[[36,5,36,30],[24,2,24,3],[27,2,27,32],[29,5,29,30],[31,5,31,30],[34,2,34,32],[35,19,35,31],[16,3,16,32],[19,2,19,32],[21,5,21,30],[21,31,21,32],[22,5,22,30],[22,31,22,32],[15,3,15,32],[0,8,0,32],[3,2,3,32],[5,2,5,32],[7,3,7,32],[8,4,8,12],[8,13,8,17],[8,18,8,32],[9,3,9,32],[13,3,13,32],[14,4,14,12],[14,13,14,17],[14,18,14,32]]}
[]
[]
[]
[null,null,"ISTRUZIONI PER LA COMPILAZIONE\n1. Scarica e salva il file Excel sul tuo computer, poi aprilo per procedere con la compilazione.\n2. Inserisci i dati richiesti nelle celle verdi, tenendo presente che:\n- come previsto dalla Legge, l'importo complessivo dei finanziamenti richiesti a questa o ad altre Banche, ai sensi dell’art. 13, comma 1, lettera m) del Decreto Liquidità, non può superare alternativamente:\n     a) il doppio della spesa salariale annua (compresi gli oneri sociali e il costo del personale che lavora nel sito dell'impresa ma che figura formalmente nel libro paga dei subcontraenti) per il 2019 o per l'ultimo anno disponibile. Nel caso di imprese costituite a partire dal 1° gennaio 2019, l'importo massimo del prestito non può superare i costi salariali annui previsti per i primi due anni di attività.\n     b) il 25 per cento del fatturato totale nel 2019.\n     c) l'importo complessivo di 30.000 euro;\n  - il finanziamento ha una durata massima di 120 mesi (10 anni) che comprendono un periodo iniziale di preammortamento della durata di 24 o 36 mesi, in cui le rate sono comprensive di soli interessi\n  - se si sceglie un preammortamento di 36 mesi, la durata minima complessiva del finanziamento è di 48 mesi.\n3. Seleziona il pulsante CALCOLA per verificare il TAEG\n4. Seleziona il pulsante STAMPA per generare il PDF precompilato che conterrà la Proposta contrattuale. Dovrai firmarlo e poi seguire le istruzioni riportate sul sito di Intesa Sanpaolo per inviare la richiesta di finanziamento."]
[]
[null,null,"DATI DEL RICHIEDENTE"]
[]
[null,null,"Ragione / Denominazione sociale",null,null,null,null,null,null,null,null,null,null,null,null,null,null,null,null,null,null,null,null,null,null,null,null,null,null,null,null,null,null,null,null,null,null,null,24,36]
[null,null,"Sede","(Città)",null,null,null,null,null,null,null,null,null,"(Indirizzo)",null,null,null,null,null,null,null,null,null,null,null,null,null,null,null,null,null,null,null,null,null,null,null,24,"na","na"]
[null,null,"Partita iva / Codice Fiscale",null,null,null,null,null,null,null,null,null,null,null,null,null,null,null,null,null,null,null,null,null,null,null,null,null,null,null,null,null,null,null,null,null,null,36,0,"na"]
[null,null,null,null,null,null,null,null,null,null,null,null,null,null,null,null,null,null,null,null,null,null,null,null,null,null,null,null,null,null,null,null,null,null,null,null,null,48,0,1.9E-3]
[null,null,"oppure",null,null,null,null,null,null,null,null,null,null,null,null,null,null,null,null,null,null,null,null,null,null,null,null,null,null,null,null,null,null,null,null,null,null,60,2E-3,4.0000000000000001E-3]
[null,null,null,null,null,null,null,null,null,null,null,null,null,null,null,null,null,null,null,null,null,null,null,null,null,null,null,null,null,null,null,null,null,null,null,null,null,72,4.0000000000000001E-3,4.4999999999999997E-3]
[null,null,"Cognome e Nome",null,null,null,null,null,null,null,null,null,null,null,null,null,null,null,null,null,null,null,null,null,null,null,null,null,null,null,null,null,null,null,null,null,null,84,4.4999999999999997E-3,5.4999999999999997E-3]
[null,null,"Residente in","(Città)",null,null,null,null,null,null,null,null,null,"(Indirizzo)",null,null,null,null,null,null,null,null,null,null,null,null,null,null,null,null,null,null,null,null,null,null,null,96,5.4999999999999997E-3,6.0000000000000001E-3]
[null,null,"Ditta (eventuale)",null,null,null,null,null,null,null,null,null,null,null,null,null,null,null,null,null,null,null,null,null,null,null,null,null,null,null,null,null,null,null,null,null,null,108,6.0000000000000001E-3,6.4999999999999997E-3]
[null,null,"Partita iva / Codice Fiscale",null,null,null,null,null,null,null,null,null,null,null,null,null,null,null,null,null,null,null,null,null,null,null,null,null,null,null,null,null,null,null,null,null,null,120,6.4999999999999997E-3,7.0000000000000001E-3]
[]
[]
[null,null,"CARATTERISTICHE DEL FINANZIAMENTO AGGIUNTIVO"]
[]
[null,null,"Importo del finanziamento in corso",null,null,"Durata del nuovo finanziamento in mesi (incluso il preammortamento)",null,null,null,null,null,null,null,null,null,null,null,null,null,null,null,null,null,null,null,null,null,null,null,null,null,null,null,null,null,{"$f":"30000-D22","v":30000}]
[null,null,"Importo aggiuntivo del nuovo finanziamento",null,null,"Durata del periodo di preammortamento del nuovo finanziamento",null,null,null,null,null,null,null,null,null,null,null,null,null,null,null,null,null,null,null,null,null,null,null,null,null,null,null,null,null,24,null,null,null,null,null,null,{"$f":"NumToLet(D23)","v":"ZERO/"}]
[null,null,null,null,null,null,null,null,null,null,null,null,null,null,null,null,null,null,null,null,null,null,null,null,null,null,null,null,null,null,null,null,null,null,null,{"$f":"IF(AF22>36,36,\"\")","v":""}]
[null,null,"IBAN di accredito e di addebito rate",null,null,null,null,null,null,null,null,null,null,null,null,null,null,null,null,null,null,null,null,null,null,null,null,null,null,null,null,null,null,null,null,0,"incasso rata"]
[]
[]
[null,null,"CONDIZIONI ECONOMICHE DEL FINANZIAMENTO AGGIUNTIVO"]
[]
[null,null,"TAN",{"$f":"IF(AF22=\"\",\"na\",IF(AF23=24,VLOOKUP(AF22,AL:AM,2,FALSE),IF(AF23=36,VLOOKUP(AF22,AL:AN,3,FALSE),\"na\")))","v":"na"},null,"Data della richiesta",null,null,null,null,null,null,null,null,null,null,null,null,null,null,null,null,null,null,null,null,null,null,null,null,null,null,{"$f":"TODAY()","v":"2020-08-31"}]
[null,null,"Spese di istruttoria",0]
[null,null,"Spese comunicazioni di legge",0]
[null,null,"Spese istruttoria",null,null,null,null,null,null,null,null,null,null,null,null,null,null,null,null,null,null,null,null,null,null,null,null,null,null,null,null,null,"Importo rata"]
[]
[null,null,"RATA E COSTO DEL CREDITO"]
[null,null,"Rata periodo di preammortamento",{"$f":"IF(D30=\"na\",\"\",D30/12*D23)","v":""},null,null,null,null,null,null,null,null,null,null,null,null,null,null,null,"TAEG (Tasso Annuo Effettivo Globale)",null,null,null,null,null,null,null,null,null,null,null,null,{"$f":"PAM!N3","v":0}]
[null,null,"Rata periodo di ammortamento",{"$f":"IF(D30=\"na\",\"\",-PMT(D30/12,(AF22-AF23),D23,0))","v":""}]
[]
[]
[]
[]
[null,null,null,null,null,null,null,null,null,null,null,null,null,null,null,null,null,null,null,null,null,null,null,null,null,null,null,null,null,null,null,null,null,null,null,null,null,"premesso che:\n- la Parte Finanziata ha ottenuto dalla Banca un finanziamento di euro "]
[null,null,null,null,null,null,null,null,null,null,null,null,null,null,null,null,null,null,null,null,null,null,null,null,null,null,null,null,null,null,null,null,null,null,null,null,null," finalizzato a fare fronte all’emergenza COVID-19, come previsto dall’art. 13, comma 1, lettera m), decreto legge 8 aprile 2020 n. 23, prima della conversione in legge di detto decreto;\n- tenuto conto di quanto previsto dalla nuova lettera m-bis) dell’art. 13, comma 1, del citato decreto legge, convertito, con modificazioni, dalla legge 5 giugno 2020, n. 40, la Parte Finanziata richiede un ulteriore finanziamento al fine di adeguare l’importo complessivamente finanziato alle nuove condizioni introdotte dalla legge di conversione; \nciò premesso, le parti convengono e stipulano quanto segue."]

{"sheet":"PAM","index":1,"n_rows":124,"n_cols":14,"rows_kept":124,"cut":false,"hidden":true,"merged":[[0,0,0,8],[0,9,0,13]]}
["PIANO DI AMMORTAMENTO",null,null,null,null,null,null,null,null,"CALCOLO TAEG"]
["N. rata","Gg per attualizzazione","Data","Importo rata","Interessi","Capitale","Capitale residuo","Spese trasparenza","Spese di incasso rata","Gg per attualizzazione","Esponente attualizzazione","Flussi di cassa","Flussi di cassa attualizzati","TAEG"]
[null,null,null,null,null,null,null,null,null,null,null,null,{"$f":"SUM(M4:M540)","v":{"$error":"#VALUE!"}}]
[null,null,{"$f":"'Dati input'!AG30+1","v":"2020-09-01"},null,null,null,{"$f":"'Dati input'!D23","v":0},null,null,null,null,{"$f":"-'Dati input'!D23+'Dati input'!D31","v":0},{"$f":"L4","v":0}]
[1,{"$f":"IF(A5=\"\",\"\",30)","v":30},{"$f":"EDATE(C4,1)","v":"2020-10-01"},{"$f":"IF(A5=\"\",\"\",IF(A5<='Dati input'!$AF$23,'Dati input'!$D$36,'Dati input'!$D$37)+I5+H5)","v":{"$error":"#VALUE!"}},{"$f":"IF(A5=\"\",\"\",IF(A5<='Dati input'!$AF$23,'Dati input'!$D$36,'Dati input'!$D$30/12*PAM!G4))","v":{"$error":"#VALUE!"}},{"$f":"IF(A5=\"\",\"\",D5-E5-I5-H5)","v":{"$error":"#VALUE!"}},{"$f":"IF(A5=\"\",\"\",G4-F5)","v":{"$error":"#VALUE!"}},{"$f":"'Dati input'!$D$32","v":0},{"$f":"IF(A5=\"\",\"\",'Dati input'!$AJ$25)","v":0},{"$f":"C5-C4","v":30},{"$f":"J5/365","v":8.2191780821917804E-2},{"$f":"IF(A5=\"\",0,D5)","v":{"$error":"#VALUE!"}},{"$f":"IF(A5=\"\",0,L5/(1+$N$3)^K5)","v":{"$error":"#VALUE!"}}]
[{"$f":"IF(OR(A5='Dati input'!$AF$22,A5=\"\"),\"\",A5+1)","v":2},{"$f":"IF(A6=\"\",\"\",30)","v":30},{"$f":"EDATE(C5,1)","v":"2020-11-01"},{"$f":"IF(A6=\"\",\"\",IF(A6<='Dati input'!$AF$23,'Dati input'!$D$36,'Dati input'!$D$37)+I6+H6)","v":{"$error":"#VALUE!"}},{"$f":"IF(A6=\"\",\"\",IF(A6<='Dati input'!$AF$23,'Dati input'!$D$36,'Dati input'!$D$30/12*PAM!G5))","v":{"$error":"#VALUE!"}},{"$f":"IF(A6=\"\",\"\",D6-E6-I6-H6)","v":{"$error":"#VALUE!"}},{"$f":"IF(A6=\"\",\"\",G5-F6)","v":{"$error":"#VALUE!"}},{"$f":"'Dati input'!$D$32","v":0},{"$f":"IF(A6=\"\",\"\",'Dati input'!$AJ$25)","v":0},{"$f":"J5+C6-C5","v":61},{"$f":"J6/365","v":0.16712328767123288},{"$f":"IF(A6=\"\",0,D6)","v":{"$error":"#VALUE!"}},{"$f":"IF(A6=\"\",0,L6/(1+$N$3)^K6)","v":{"$error":"#VALUE!"}}]
[{"$f":"IF(OR(A6='Dati input'!$AF$22,A6=\"\"),\"\",A6+1)","v":3},30,"2020-12-01",{"$f":"IF(A7=\"\",\"\",IF(A7<='Dati input'!$AF$23,'Dati input'!$D$36,'Dati input'!$D$37)+I7+H7)","v":{"$error":"#VALUE!"}},{"$f":"IF(A7=\"\",\"\",IF(A7<='Dati input'!$AF$23,'Dati input'!$D$36,'Dati input'!$D$30/12*PAM!G6))","v":{"$error":"#VALUE!"}},{"$error":"#VALUE!"},{"$error":"#VALUE!"},{"$f":"'Dati input'!$D$32","v":0},{"$f":"IF(A7=\"\",\"\",'Dati input'!$AJ$25)","v":0},{"$f":"J6+C7-C6","v":91},0.24931506849315069,{"$error":"#VALUE!"},{"$error":"#VALUE!"}]
[{"$f":"IF(OR(A7='Dati input'!$AF$22,A7=\"\"),\"\",A7+1)","v":4},30,"2021-01-01",{"$f":"IF(A8=\"\",\"\",IF(A8<='Dati input'!$AF$23,'Dati input'!$D$36,'Dati input'!$D$37)+I8+H8)","v":{"$error":"#VALUE!"}},{"$f":"IF(A8=\"\",\"\",IF(A8<='Dati input'!$AF$23,'Dati input'!$D$36,'Dati input'!$D$30/12*PAM!G7))","v":{"$error":"#VALUE!"}},{"$error":"#VALUE!"},{"$error":"#VALUE!"},{"$f":"'Dati input'!$D$32","v":0},{"$f":"IF(A8=\"\",\"\",'Dati input'!$AJ$25)","v":0},122,0.33424657534246577,{"$error":"#VALUE!"},{"$error":"#VALUE!"}]
[{"$f":"IF(OR(A8='Dati input'!$AF$22,A8=\"\"),\"\",A8+1)","v":5},30,"2021-02-01",{"$f":"IF(A9=\"\",\"\",IF(A9<='Dati input'!$AF$23,'Dati input'!$D$36,'Dati input'!$D$37)+I9+H9)","v":{"$error":"#VALUE!"}},{"$f":"IF(A9=\"\",\"\",IF(A9<='Dati input'!$AF$23,'Dati input'!$D$36,'Dati input'!$D$30/12*PAM!G8))","v":{"$error":"#VALUE!"}},{"$error":"#VALUE!"},{"$error":"#VALUE!"},{"$f":"'Dati input'!$D$32","v":0},{"$f":"IF(A9=\"\",\"\",'Dati input'!$AJ$25)","v":0},153,0.41917808219178082,{"$error":"#VALUE!"},{"$error":"#VALUE!"}]
[{"$f":"IF(OR(A9='Dati input'!$AF$22,A9=\"\"),\"\",A9+1)","v":6},30,"2021-03-01",{"$f":"IF(A10=\"\",\"\",IF(A10<='Dati input'!$AF$23,'Dati input'!$D$36,'Dati input'!$D$37)+I10+H10)","v":{"$error":"#VALUE!"}},{"$f":"IF(A10=\"\",\"\",IF(A10<='Dati input'!$AF$23,'Dati input'!$D$36,'Dati input'!$D$30/12*PAM!G9))","v":{"$error":"#VALUE!"}},{"$error":"#VALUE!"},{"$error":"#VALUE!"},{"$f":"'Dati input'!$D$32","v":0},{"$f":"IF(A10=\"\",\"\",'Dati input'!$AJ$25)","v":0},181,0.49589041095890413,{"$error":"#VALUE!"},{"$error":"#VALUE!"}]
[{"$f":"IF(OR(A10='Dati input'!$AF$22,A10=\"\"),\"\",A10+1)","v":7},30,"2021-04-01",{"$f":"IF(A11=\"\",\"\",IF(A11<='Dati input'!$AF$23,'Dati input'!$D$36,'Dati input'!$D$37)+I11+H11)","v":{"$error":"#VALUE!"}},{"$f":"IF(A11=\"\",\"\",IF(A11<='Dati input'!$AF$23,'Dati input'!$D$36,'Dati input'!$D$30/12*PAM!G10))","v":{"$error":"#VALUE!"}},{"$error":"#VALUE!"},{"$error":"#VALUE!"},{"$f":"'Dati input'!$D$32","v":0},{"$f":"IF(A11=\"\",\"\",'Dati input'!$AJ$25)","v":0},212,0.58082191780821912,{"$error":"#VALUE!"},{"$error":"#VALUE!"}]
[{"$f":"IF(OR(A11='Dati input'!$AF$22,A11=\"\"),\"\",A11+1)","v":8},30,"2021-05-01",{"$f":"IF(A12=\"\",\"\",IF(A12<='Dati input'!$AF$23,'Dati input'!$D$36,'Dati input'!$D$37)+I12+H12)","v":{"$error":"#VALUE!"}},{"$f":"IF(A12=\"\",\"\",IF(A12<='Dati input'!$AF$23,'Dati input'!$D$36,'Dati input'!$D$30/12*PAM!G11))","v":{"$error":"#VALUE!"}},{"$error":"#VALUE!"},{"$error":"#VALUE!"},{"$f":"'Dati input'!$D$32","v":0},{"$f":"IF(A12=\"\",\"\",'Dati input'!$AJ$25)","v":0},242,0.66301369863013704,{"$error":"#VALUE!"},{"$error":"#VALUE!"}]
[{"$f":"IF(OR(A12='Dati input'!$AF$22,A12=\"\"),\"\",A12+1)","v":9},30,"2021-06-01",{"$f":"IF(A13=\"\",\"\",IF(A13<='Dati input'!$AF$23,'Dati input'!$D$36,'Dati input'!$D$37)+I13+H13)","v":{"$error":"#VALUE!"}},{"$f":"IF(A13=\"\",\"\",IF(A13<='Dati input'!$AF$23,'Dati input'!$D$36,'Dati input'!$D$30/12*PAM!G12))","v":{"$error":"#VALUE!"}},{"$error":"#VALUE!"},{"$error":"#VALUE!"},{"$f":"'Dati input'!$D$32","v":0},{"$f":"IF(A13=\"\",\"\",'Dati input'!$AJ$25)","v":0},273,0.74794520547945209,{"$error":"#VALUE!"},{"$error":"#VALUE!"}]
[{"$f":"IF(OR(A13='Dati input'!$AF$22,A13=\"\"),\"\",A13+1)","v":10},30,"2021-07-01",{"$f":"IF(A14=\"\",\"\",IF(A14<='Dati input'!$AF$23,'Dati input'!$D$36,'Dati input'!$D$37)+I14+H14)","v":{"$error":"#VALUE!"}},{"$f":"IF(A14=\"\",\"\",IF(A14<='Dati input'!$AF$23,'Dati input'!$D$36,'Dati input'!$D$30/12*PAM!G13))","v":{"$error":"#VALUE!"}},{"$error":"#VALUE!"},{"$error":"#VALUE!"},{"$f":"'Dati input'!$D$32","v":0},{"$f":"IF(A14=\"\",\"\",'Dati input'!$AJ$25)","v":0},303,0.83013698630136989,{"$error":"#VALUE!"},{"$error":"#VALUE!"}]
[{"$f":"IF(OR(A14='Dati input'!$AF$22,A14=\"\"),\"\",A14+1)","v":11},30,"2021-08-01",{"$f":"IF(A15=\"\",\"\",IF(A15<='Dati input'!$AF$23,'Dati input'!$D$36,'Dati input'!$D$37)+I15+H15)","v":{"$error":"#VALUE!"}},{"$f":"IF(A15=\"\",\"\",IF(A15<='Dati input'!$AF$23,'Dati input'!$D$36,'Dati input'!$D$30/12*PAM!G14))","v":{"$error":"#VALUE!"}},{"$error":"#VALUE!"},{"$error":"#VALUE!"},{"$f":"'Dati input'!$D$32","v":0},{"$f":"IF(A15=\"\",\"\",'Dati input'!$AJ$25)","v":0},334,0.91506849315068495,{"$error":"#VALUE!"},{"$error":"#VALUE!"}]
[{"$f":"IF(OR(A15='Dati input'!$AF$22,A15=\"\"),\"\",A15+1)","v":12},30,"2021-09-01",{"$f":"IF(A16=\"\",\"\",IF(A16<='Dati input'!$AF$23,'Dati input'!$D$36,'Dati input'!$D$37)+I16+H16)","v":{"$error":"#VALUE!"}},{"$f":"IF(A16=\"\",\"\",IF(A16<='Dati input'!$AF$23,'Dati input'!$D$36,'Dati input'!$D$30/12*PAM!G15))","v":{"$error":"#VALUE!"}},{"$error":"#VALUE!"},{"$error":"#VALUE!"},{"$f":"'Dati input'!$D$32","v":0},{"$f":"IF(A16=\"\",\"\",'Dati input'!$AJ$25)","v":0},365,1,{"$error":"#VALUE!"},{"$error":"#VALUE!"}]
[{"$f":"IF(OR(A16='Dati input'!$AF$22,A16=\"\"),\"\",A16+1)","v":13},30,"2021-10-01",{"$f":"IF(A17=\"\",\"\",IF(A17<='Dati input'!$AF$23,'Dati input'!$D$36,'Dati input'!$D$37)+I17+H17)","v":{"$error":"#VALUE!"}},{"$f":"IF(A17=\"\",\"\",IF(A17<='Dati input'!$AF$23,'Dati input'!$D$36,'Dati input'!$D$30/12*PAM!G16))","v":{"$error":"#VALUE!"}},{"$error":"#VALUE!"},{"$error":"#VALUE!"},{"$f":"'Dati input'!$D$32","v":0},{"$f":"IF(A17=\"\",\"\",'Dati input'!$AJ$25)","v":0},395,1.0821917808219179,{"$error":"#VALUE!"},{"$error":"#VALUE!"}]
[{"$f":"IF(OR(A17='Dati input'!$AF$22,A17=\"\"),\"\",A17+1)","v":14},30,"2021-11-01",{"$f":"IF(A18=\"\",\"\",IF(A18<='Dati input'!$AF$23,'Dati input'!$D$36,'Dati input'!$D$37)+I18+H18)","v":{"$error":"#VALUE!"}},{"$f":"IF(A18=\"\",\"\",IF(A18<='Dati input'!$AF$23,'Dati input'!$D$36,'Dati input'!$D$30/12*PAM!G17))","v":{"$error":"#VALUE!"}},{"$error":"#VALUE!"},{"$error":"#VALUE!"},{"$f":"'Dati input'!$D$32","v":0},{"$f":"IF(A18=\"\",\"\",'Dati input'!$AJ$25)","v":0},426,1.167123287671233,{"$error":"#VALUE!"},{"$error":"#VALUE!"}]
[{"$f":"IF(OR(A18='Dati input'!$AF$22,A18=\"\"),\"\",A18+1)","v":15},30,"2021-12-01",{"$f":"IF(A19=\"\",\"\",IF(A19<='Dati input'!$AF$23,'Dati input'!$D$36,'Dati input'!$D$37)+I19+H19)","v":{"$error":"#VALUE!"}},{"$f":"IF(A19=\"\",\"\",IF(A19<='Dati input'!$AF$23,'Dati input'!$D$36,'Dati input'!$D$30/12*PAM!G18))","v":{"$error":"#VALUE!"}},{"$error":"#VALUE!"},{"$error":"#VALUE!"},{"$f":"'Dati input'!$D$32","v":0},{"$f":"IF(A19=\"\",\"\",'Dati input'!$AJ$25)","v":0},456,1.2493150684931507,{"$error":"#VALUE!"},{"$error":"#VALUE!"}]
[{"$f":"IF(OR(A19='Dati input'!$AF$22,A19=\"\"),\"\",A19+1)","v":16},30,"2022-01-01",{"$f":"IF(A20=\"\",\"\",IF(A20<='Dati input'!$AF$23,'Dati input'!$D$36,'Dati input'!$D$37)+I20+H20)","v":{"$error":"#VALUE!"}},{"$f":"IF(A20=\"\",\"\",IF(A20<='Dati input'!$AF$23,'Dati input'!$D$36,'Dati input'!$D$30/12*PAM!G19))","v":{"$error":"#VALUE!"}},{"$error":"#VALUE!"},{"$error":"#VALUE!"},{"$f":"'Dati input'!$D$32","v":0},{"$f":"IF(A20=\"\",\"\",'Dati input'!$AJ$25)","v":0},487,1.3342465753424657,{"$error":"#VALUE!"},{"$error":"#VALUE!"}]
[{"$f":"IF(OR(A20='Dati input'!$AF$22,A20=\"\"),\"\",A20+1)","v":17},30,"2022-02-01",{"$f":"IF(A21=\"\",\"\",IF(A21<='Dati input'!$AF$23,'Dati input'!$D$36,'Dati input'!$D$37)+I21+H21)","v":{"$error":"#VALUE!"}},{"$f":"IF(A21=\"\",\"\",IF(A21<='Dati input'!$AF$23,'Dati input'!$D$36,'Dati input'!$D$30/12*PAM!G20))","v":{"$error":"#VALUE!"}},{"$error":"#VALUE!"},{"$error":"#VALUE!"},{"$f":"'Dati input'!$D$32","v":0},{"$f":"IF(A21=\"\",\"\",'Dati input'!$AJ$25)","v":0},518,1.4191780821917808,{"$error":"#VALUE!"},{"$error":"#VALUE!"}]
[{"$f":"IF(OR(A21='Dati input'!$AF$22,A21=\"\"),\"\",A21+1)","v":18},30,"2022-03-01",{"$f":"IF(A22=\"\",\"\",IF(A22<='Dati input'!$AF$23,'Dati input'!$D$36,'Dati input'!$D$37)+I22+H22)","v":{"$error":"#VALUE!"}},{"$f":"IF(A22=\"\",\"\",IF(A22<='Dati input'!$AF$23,'Dati input'!$D$36,'Dati input'!$D$30/12*PAM!G21))","v":{"$error":"#VALUE!"}},{"$error":"#VALUE!"},{"$error":"#VALUE!"},{"$f":"'Dati input'!$D$32","v":0},{"$f":"IF(A22=\"\",\"\",'Dati input'!$AJ$25)","v":0},546,1.4958904109589042,{"$error":"#VALUE!"},{"$error":"#VALUE!"}]
[{"$f":"IF(OR(A22='Dati input'!$AF$22,A22=\"\"),\"\",A22+1)","v":19},30,"2022-04-01",{"$f":"IF(A23=\"\",\"\",IF(A23<='Dati input'!$AF$23,'Dati input'!$D$36,'Dati input'!$D$37)+I23+H23)","v":{"$error":"#VALUE!"}},{"$f":"IF(A23=\"\",\"\",IF(A23<='Dati input'!$AF$23,'Dati input'!$D$36,'Dati input'!$D$30/12*PAM!G22))","v":{"$error":"#VALUE!"}},{"$error":"#VALUE!"},{"$error":"#VALUE!"},{"$f":"'Dati input'!$D$32","v":0},{"$f":"IF(A23=\"\",\"\",'Dati input'!$AJ$25)","v":0},577,1.5808219178082192,{"$error":"#VALUE!"},{"$error":"#VALUE!"}]
[{"$f":"IF(OR(A23='Dati input'!$AF$22,A23=\"\"),\"\",A23+1)","v":20},30,"2022-05-01",{"$f":"IF(A24=\"\",\"\",IF(A24<='Dati input'!$AF$23,'Dati input'!$D$36,'Dati input'!$D$37)+I24+H24)","v":{"$error":"#VALUE!"}},{"$f":"IF(A24=\"\",\"\",IF(A24<='Dati input'!$AF$23,'Dati input'!$D$36,'Dati input'!$D$30/12*PAM!G23))","v":{"$error":"#VALUE!"}},{"$error":"#VALUE!"},{"$error":"#VALUE!"},{"$f":"'Dati input'!$D$32","v":0},{"$f":"IF(A24=\"\",\"\",'Dati input'!$AJ$25)","v":0},607,1.6630136986301369,{"$error":"#VALUE!"},{"$error":"#VALUE!"}]
[{"$f":"IF(OR(A24='Dati input'!$AF$22,A24=\"\"),\"\",A24+1)","v":21},30,"2022-06-01",{"$f":"IF(A25=\"\",\"\",IF(A25<='Dati input'!$AF$23,'Dati input'!$D$36,'Dati input'!$D$37)+I25+H25)","v":{"$error":"#VALUE!"}},{"$f":"IF(A25=\"\",\"\",IF(A25<='Dati input'!$AF$23,'Dati input'!$D$36,'Dati input'!$D$30/12*PAM!G24))","v":{"$error":"#VALUE!"}},{"$error":"#VALUE!"},{"$error":"#VALUE!"},{"$f":"'Dati input'!$D$32","v":0},{"$f":"IF(A25=\"\",\"\",'Dati input'!$AJ$25)","v":0},638,1.747945205479452,{"$error":"#VALUE!"},{"$error":"#VALUE!"}]
[{"$f":"IF(OR(A25='Dati input'!$AF$22,A25=\"\"),\"\",A25+1)","v":22},30,"2022-07-01",{"$f":"IF(A26=\"\",\"\",IF(A26<='Dati input'!$AF$23,'Dati input'!$D$36,'Dati input'!$D$37)+I26+H26)","v":{"$error":"#VALUE!"}},{"$f":"IF(A26=\"\",\"\",IF(A26<='Dati input'!$AF$23,'Dati input'!$D$36,'Dati input'!$D$30/12*PAM!G25))","v":{"$error":"#VALUE!"}},{"$error":"#VALUE!"},{"$error":"#VALUE!"},{"$f":"'Dati input'!$D$32","v":0},{"$f":"IF(A26=\"\",\"\",'Dati input'!$AJ$25)","v":0},668,1.8301369863013699,{"$error":"#VALUE!"},{"$error":"#VALUE!"}]
[{"$f":"IF(OR(A26='Dati input'!$AF$22,A26=\"\"),\"\",A26+1)","v":23},30,"2022-08-01",{"$f":"IF(A27=\"\",\"\",IF(A27<='Dati input'!$AF$23,'Dati input'!$D$36,'Dati input'!$D$37)+I27+H27)","v":{"$error":"#VALUE!"}},{"$f":"IF(A27=\"\",\"\",IF(A27<='Dati input'!$AF$23,'Dati input'!$D$36,'Dati input'!$D$30/12*PAM!G26))","v":{"$error":"#VALUE!"}},{"$error":"#VALUE!"},{"$error":"#VALUE!"},{"$f":"'Dati input'!$D$32","v":0},{"$f":"IF(A27=\"\",\"\",'Dati input'!$AJ$25)","v":0},699,1.9150684931506849,{"$error":"#VALUE!"},{"$error":"#VALUE!"}]
[{"$f":"IF(OR(A27='Dati input'!$AF$22,A27=\"\"),\"\",A27+1)","v":24},30,"2022-09-01",{"$f":"IF(A28=\"\",\"\",IF(A28<='Dati input'!$AF$23,'Dati input'!$D$36,'Dati input'!$D$37)+I28+H28)","v":{"$error":"#VALUE!"}},{"$f":"IF(A28=\"\",\"\",IF(A28<='Dati input'!$AF$23,'Dati input'!$D$36,'Dati input'!$D$30/12*PAM!G27))","v":{"$error":"#VALUE!"}},{"$error":"#VALUE!"},{"$error":"#VALUE!"},{"$f":"'Dati input'!$D$32","v":0},{"$f":"IF(A28=\"\",\"\",'Dati input'!$AJ$25)","v":0},730,2,{"$error":"#VALUE!"},{"$error":"#VALUE!"}]
[{"$f":"IF(OR(A28='Dati input'!$AF$22,A28=\"\"),\"\",A28+1)","v":25},30,"2022-10-01",{"$f":"IF(A29=\"\",\"\",IF(A29<='Dati input'!$AF$23,'Dati input'!$D$36,'Dati input'!$D$37)+I29+H29)","v":{"$error":"#VALUE!"}},{"$f":"IF(A29=\"\",\"\",IF(A29<='Dati input'!$AF$23,'Dati input'!$D$36,'Dati input'!$D$30/12*PAM!G28))","v":{"$error":"#VALUE!"}},{"$error":"#VALUE!"},{"$error":"#VALUE!"},{"$f":"'Dati input'!$D$32","v":0},{"$f":"IF(A29=\"\",\"\",'Dati input'!$AJ$25)","v":0},760,2.0821917808219177,{"$error":"#VALUE!"},{"$error":"#VALUE!"}]
[{"$f":"IF(OR(A29='Dati input'!$AF$22,A29=\"\"),\"\",A29+1)","v":26},30,"2022-11-01",{"$f":"IF(A30=\"\",\"\",IF(A30<='Dati input'!$AF$23,'Dati input'!$D$36,'Dati input'!$D$37)+I30+H30)","v":{"$error":"#VALUE!"}},{"$f":"IF(A30=\"\",\"\",IF(A30<='Dati input'!$AF$23,'Dati input'!$D$36,'Dati input'!$D$30/12*PAM!G29))","v":{"$error":"#VALUE!"}},{"$error":"#VALUE!"},{"$error":"#VALUE!"},{"$f":"'Dati input'!$D$32","v":0},{"$f":"IF(A30=\"\",\"\",'Dati input'!$AJ$25)","v":0},791,2.1671232876712327,{"$error":"#VALUE!"},{"$error":"#VALUE!"}]
[{"$f":"IF(OR(A30='Dati input'!$AF$22,A30=\"\"),\"\",A30+1)","v":27},30,"2022-12-01",{"$f":"IF(A31=\"\",\"\",IF(A31<='Dati input'!$AF$23,'Dati input'!$D$36,'Dati input'!$D$37)+I31+H31)","v":{"$error":"#VALUE!"}},{"$f":"IF(A31=\"\",\"\",IF(A31<='Dati input'!$AF$23,'Dati input'!$D$36,'Dati input'!$D$30/12*PAM!G30))","v":{"$error":"#VALUE!"}},{"$error":"#VALUE!"},{"$error":"#VALUE!"},{"$f":"'Dati input'!$D$32","v":0},{"$f":"IF(A31=\"\",\"\",'Dati input'!$AJ$25)","v":0},821,2.2493150684931509,{"$error":"#VALUE!"},{"$error":"#VALUE!"}]
[{"$f":"IF(OR(A31='Dati input'!$AF$22,A31=\"\"),\"\",A31+1)","v":28},30,"2023-01-01",{"$f":"IF(A32=\"\",\"\",IF(A32<='Dati input'!$AF$23,'Dati input'!$D$36,'Dati input'!$D$37)+I32+H32)","v":{"$error":"#VALUE!"}},{"$f":"IF(A32=\"\",\"\",IF(A32<='Dati input'!$AF$23,'Dati input'!$D$36,'Dati input'!$D$30/12*PAM!G31))","v":{"$error":"#VALUE!"}},{"$error":"#VALUE!"},{"$error":"#VALUE!"},{"$f":"'Dati input'!$D$32","v":0},{"$f":"IF(A32=\"\",\"\",'Dati input'!$AJ$25)","v":0},852,2.3342465753424659,{"$error":"#VALUE!"},{"$error":"#VALUE!"}]
[{"$f":"IF(OR(A32='Dati input'!$AF$22,A32=\"\"),\"\",A32+1)","v":29},30,"2023-02-01",{"$f":"IF(A33=\"\",\"\",IF(A33<='Dati input'!$AF$23,'Dati input'!$D$36,'Dati input'!$D$37)+I33+H33)","v":{"$error":"#VALUE!"}},{"$f":"IF(A33=\"\",\"\",IF(A33<='Dati input'!$AF$23,'Dati input'!$D$36,'Dati input'!$D$30/12*PAM!G32))","v":{"$error":"#VALUE!"}},{"$error":"#VALUE!"},{"$error":"#VALUE!"},{"$f":"'Dati input'!$D$32","v":0},{"$f":"IF(A33=\"\",\"\",'Dati input'!$AJ$25)","v":0},883,2.419178082191781,{"$error":"#VALUE!"},{"$error":"#VALUE!"}]
[{"$f":"IF(OR(A33='Dati input'!$AF$22,A33=\"\"),\"\",A33+1)","v":30},30,"2023-03-01",{"$f":"IF(A34=\"\",\"\",IF(A34<='Dati input'!$AF$23,'Dati input'!$D$36,'Dati input'!$D$37)+I34+H34)","v":{"$error":"#VALUE!"}},{"$f":"IF(A34=\"\",\"\",IF(A34<='Dati input'!$AF$23,'Dati input'!$D$36,'Dati input'!$D$30/12*PAM!G33))","v":{"$error":"#VALUE!"}},{"$error":"#VALUE!"},{"$error":"#VALUE!"},{"$f":"'Dati input'!$D$32","v":0},{"$f":"IF(A34=\"\",\"\",'Dati input'!$AJ$25)","v":0},911,2.495890410958904,{"$error":"#VALUE!"},{"$error":"#VALUE!"}]
[{"$f":"IF(OR(A34='Dati input'!$AF$22,A34=\"\"),\"\",A34+1)","v":31},30,"2023-04-01",{"$f":"IF(A35=\"\",\"\",IF(A35<='Dati input'!$AF$23,'Dati input'!$D$36,'Dati input'!$D$37)+I35+H35)","v":{"$error":"#VALUE!"}},{"$f":"IF(A35=\"\",\"\",IF(A35<='Dati input'!$AF$23,'Dati input'!$D$36,'Dati input'!$D$30/12*PAM!G34))","v":{"$error":"#VALUE!"}},{"$error":"#VALUE!"},{"$error":"#VALUE!"},{"$f":"'Dati input'!$D$32","v":0},{"$f":"IF(A35=\"\",\"\",'Dati input'!$AJ$25)","v":0},942,2.580821917808219,{"$error":"#VALUE!"},{"$error":"#VALUE!"}]
[{"$f":"IF(OR(A35='Dati input'!$AF$22,A35=\"\"),\"\",A35+1)","v":32},30,"2023-05-01",{"$f":"IF(A36=\"\",\"\",IF(A36<='Dati input'!$AF$23,'Dati input'!$D$36,'Dati input'!$D$37)+I36+H36)","v":{"$error":"#VALUE!"}},{"$f":"IF(A36=\"\",\"\",IF(A36<='Dati input'!$AF$23,'Dati input'!$D$36,'Dati input'!$D$30/12*PAM!G35))","v":{"$error":"#VALUE!"}},{"$error":"#VALUE!"},{"$error":"#VALUE!"},{"$f":"'Dati input'!$D$32","v":0},{"$f":"IF(A36=\"\",\"\",'Dati input'!$AJ$25)","v":0},972,2.6630136986301371,{"$error":"#VALUE!"},{"$error":"#VALUE!"}]
[{"$f":"IF(OR(A36='Dati input'!$AF$22,A36=\"\"),\"\",A36+1)","v":33},30,"2023-06-01",{"$f":"IF(A37=\"\",\"\",IF(A37<='Dati input'!$AF$23,'Dati input'!$D$36,'Dati input'!$D$37)+I37+H37)","v":{"$error":"#VALUE!"}},{"$f":"IF(A37=\"\",\"\",IF(A37<='Dati input'!$AF$23,'Dati input'!$D$36,'Dati input'!$D$30/12*PAM!G36))","v":{"$error":"#VALUE!"}},{"$error":"#VALUE!"},{"$error":"#VALUE!"},{"$f":"'Dati input'!$D$32","v":0},{"$f":"IF(A37=\"\",\"\",'Dati input'!$AJ$25)","v":0},1003,2.7479452054794522,{"$error":"#VALUE!"},{"$error":"#VALUE!"}]
[{"$f":"IF(OR(A37='Dati input'!$AF$22,A37=\"\"),\"\",A37+1)","v":34},30,"2023-07-01",{"$f":"IF(A38=\"\",\"\",IF(A38<='Dati input'!$AF$23,'Dati input'!$D$36,'Dati input'!$D$37)+I38+H38)","v":{"$error":"#VALUE!"}},{"$f":"IF(A38=\"\",\"\",IF(A38<='Dati input'!$AF$23,'Dati input'!$D$36,'Dati input'!$D$30/12*PAM!G37))","v":{"$error":"#VALUE!"}},{"$error":"#VALUE!"},{"$error":"#VALUE!"},{"$f":"'Dati input'!$D$32","v":0},{"$f":"IF(A38=\"\",\"\",'Dati input'!$AJ$25)","v":0},1033,2.8301369863013699,{"$error":"#VALUE!"},{"$error":"#VALUE!"}]
[{"$f":"IF(OR(A38='Dati input'!$AF$22,A38=\"\"),\"\",A38+1)","v":35},30,"2023-08-01",{"$f":"IF(A39=\"\",\"\",IF(A39<='Dati input'!$AF$23,'Dati input'!$D$36,'Dati input'!$D$37)+I39+H39)","v":{"$error":"#VALUE!"}},{"$f":"IF(A39=\"\",\"\",IF(A39<='Dati input'!$AF$23,'Dati input'!$D$36,'Dati input'!$D$30/12*PAM!G38))","v":{"$error":"#VALUE!"}},{"$error":"#VALUE!"},{"$error":"#VALUE!"},{"$f":"'Dati input'!$D$32","v":0},{"$f":"IF(A39=\"\",\"\",'Dati input'!$AJ$25)","v":0},1064,2.9150684931506849,{"$error":"#VALUE!"},{"$error":"#VALUE!"}]
[{"$f":"IF(OR(A39='Dati input'!$AF$22,A39=\"\"),\"\",A39+1)","v":36},30,"2023-09-01",{"$f":"IF(A40=\"\",\"\",IF(A40<='Dati input'!$AF$23,'Dati input'!$D$36,'Dati input'!$D$37)+I40+H40)","v":{"$error":"#VALUE!"}},{"$f":"IF(A40=\"\",\"\",IF(A40<='Dati input'!$AF$23,'Dati input'!$D$36,'Dati input'!$D$30/12*PAM!G39))","v":{"$error":"#VALUE!"}},{"$error":"#VALUE!"},{"$error":"#VALUE!"},{"$f":"'Dati input'!$D$32","v":0},{"$f":"IF(A40=\"\",\"\",'Dati input'!$AJ$25)","v":0},1095,3,{"$error":"#VALUE!"},{"$error":"#VALUE!"}]
[{"$f":"IF(OR(A40='Dati input'!$AF$22,A40=\"\"),\"\",A40+1)","v":37},30,"2023-10-01",{"$f":"IF(A41=\"\",\"\",IF(A41<='Dati input'!$AF$23,'Dati input'!$D$36,'Dati input'!$D$37)+I41+H41)","v":{"$error":"#VALUE!"}},{"$f":"IF(A41=\"\",\"\",IF(A41<='Dati input'!$AF$23,'Dati input'!$D$36,'Dati input'!$D$30/12*PAM!G40))","v":{"$error":"#VALUE!"}},{"$error":"#VALUE!"},{"$error":"#VALUE!"},{"$f":"'Dati input'!$D$32","v":0},{"$f":"IF(A41=\"\",\"\",'Dati input'!$AJ$25)","v":0},1125,3.0821917808219177,{"$error":"#VALUE!"},{"$error":"#VALUE!"}]
[{"$f":"IF(OR(A41='Dati input'!$AF$22,A41=\"\"),\"\",A41+1)","v":38},30,"2023-11-01",{"$f":"IF(A42=\"\",\"\",IF(A42<='Dati input'!$AF$23,'Dati input'!$D$36,'Dati input'!$D$37)+I42+H42)","v":{"$error":"#VALUE!"}},{"$f":"IF(A42=\"\",\"\",IF(A42<='Dati input'!$AF$23,'Dati input'!$D$36,'Dati input'!$D$30/12*PAM!G41))","v":{"$error":"#VALUE!"}},{"$error":"#VALUE!"},{"$error":"#VALUE!"},{"$f":"'Dati input'!$D$32","v":0},{"$f":"IF(A42=\"\",\"\",'Dati input'!$AJ$25)","v":0},1156,3.1671232876712327,{"$error":"#VALUE!"},{"$error":"#VALUE!"}]
[{"$f":"IF(OR(A42='Dati input'!$AF$22,A42=\"\"),\"\",A42+1)","v":39},30,"2023-12-01",{"$f":"IF(A43=\"\",\"\",IF(A43<='Dati input'!$AF$23,'Dati input'!$D$36,'Dati input'!$D$37)+I43+H43)","v":{"$error":"#VALUE!"}},{"$f":"IF(A43=\"\",\"\",IF(A43<='Dati input'!$AF$23,'Dati input'!$D$36,'Dati input'!$D$30/12*PAM!G42))","v":{"$error":"#VALUE!"}},{"$error":"#VALUE!"},{"$error":"#VALUE!"},{"$f":"'Dati input'!$D$32","v":0},{"$f":"IF(A43=\"\",\"\",'Dati input'!$AJ$25)","v":0},1186,3.2493150684931509,{"$error":"#VALUE!"},{"$error":"#VALUE!"}]
[{"$f":"IF(OR(A43='Dati input'!$AF$22,A43=\"\"),\"\",A43+1)","v":40},30,"2024-01-01",{"$f":"IF(A44=\"\",\"\",IF(A44<='Dati input'!$AF$23,'Dati input'!$D$36,'Dati input'!$D$37)+I44+H44)","v":{"$error":"#VALUE!"}},{"$f":"IF(A44=\"\",\"\",IF(A44<='Dati input'!$AF$23,'Dati input'!$D$36,'Dati input'!$D$30/12*PAM!G43))","v":{"$error":"#VALUE!"}},{"$error":"#VALUE!"},{"$error":"#VALUE!"},{"$f":"'Dati input'!$D$32","v":0},{"$f":"IF(A44=\"\",\"\",'Dati input'!$AJ$25)","v":0},1217,3.3342465753424659,{"$error":"#VALUE!"},{"$error":"#VALUE!"}]
[{"$f":"IF(OR(A44='Dati input'!$AF$22,A44=\"\"),\"\",A44+1)","v":41},30,"2024-02-01",{"$f":"IF(A45=\"\",\"\",IF(A45<='Dati input'!$AF$23,'Dati input'!$D$36,'Dati input'!$D$37)+I45+H45)","v":{"$error":"#VALUE!"}},{"$f":"IF(A45=\"\",\"\",IF(A45<='Dati input'!$AF$23,'Dati input'!$D$36,'Dati input'!$D$30/12*PAM!G44))","v":{"$error":"#VALUE!"}},{"$error":"#VALUE!"},{"$error":"#VALUE!"},{"$f":"'Dati input'!$D$32","v":0},{"$f":"IF(A45=\"\",\"\",'Dati input'!$AJ$25)","v":0},1248,3.419178082191781,{"$error":"#VALUE!"},{"$error":"#VALUE!"}]
[{"$f":"IF(OR(A45='Dati input'!$AF$22,A45=\"\"),\"\",A45+1)","v":42},30,"2024-03-01",{"$f":"IF(A46=\"\",\"\",IF(A46<='Dati input'!$AF$23,'Dati input'!$D$36,'Dati input'!$D$37)+I46+H46)","v":{"$error":"#VALUE!"}},{"$f":"IF(A46=\"\",\"\",IF(A46<='Dati input'!$AF$23,'Dati input'!$D$36,'Dati input'!$D$30/12*PAM!G45))","v":{"$error":"#VALUE!"}},{"$error":"#VALUE!"},{"$error":"#VALUE!"},{"$f":"'Dati input'!$D$32","v":0},{"$f":"IF(A46=\"\",\"\",'Dati input'!$AJ$25)","v":0},1277,3.4986301369863013,{"$error":"#VALUE!"},{"$error":"#VALUE!"}]
[{"$f":"IF(OR(A46='Dati input'!$AF$22,A46=\"\"),\"\",A46+1)","v":43},30,"2024-04-01",{"$f":"IF(A47=\"\",\"\",IF(A47<='Dati input'!$AF$23,'Dati input'!$D$36,'Dati input'!$D$37)+I47+H47)","v":{"$error":"#VALUE!"}},{"$f":"IF(A47=\"\",\"\",IF(A47<='Dati input'!$AF$23,'Dati input'!$D$36,'Dati input'!$D$30/12*PAM!G46))","v":{"$error":"#VALUE!"}},{"$error":"#VALUE!"},{"$error":"#VALUE!"},{"$f":"'Dati input'!$D$32","v":0},{"$f":"IF(A47=\"\",\"\",'Dati input'!$AJ$25)","v":0},1308,3.5835616438356164,{"$error":"#VALUE!"},{"$error":"#VALUE!"}]
[{"$f":"IF(OR(A47='Dati input'!$AF$22,A47=\"\"),\"\",A47+1)","v":44},30,"2024-05-01",{"$f":"IF(A48=\"\",\"\",IF(A48<='Dati input'!$AF$23,'Dati input'!$D$36,'Dati input'!$D$37)+I48+H48)","v":{"$error":"#VALUE!"}},{"$f":"IF(A48=\"\",\"\",IF(A48<='Dati input'!$AF$23,'Dati input'!$D$36,'Dati input'!$D$30/12*PAM!G47))","v":{"$error":"#VALUE!"}},{"$error":"#VALUE!"},{"$error":"#VALUE!"},{"$f":"'Dati input'!$D$32","v":0},{"$f":"IF(A48=\"\",\"\",'Dati input'!$AJ$25)","v":0},1338,3.6657534246575341,{"$error":"#VALUE!"},{"$error":"#VALUE!"}]
[{"$f":"IF(OR(A48='Dati input'!$AF$22,A48=\"\"),\"\",A48+1)","v":45},30,"2024-06-01",{"$f":"IF(A49=\"\",\"\",IF(A49<='Dati input'!$AF$23,'Dati input'!$D$36,'Dati input'!$D$37)+I49+H49)","v":{"$error":"#VALUE!"}},{"$f":"IF(A49=\"\",\"\",IF(A49<='Dati input'!$AF$23,'Dati input'!$D$36,'Dati input'!$D$30/12*PAM!G48))","v":{"$error":"#VALUE!"}},{"$error":"#VALUE!"},{"$error":"#VALUE!"},{"$f":"'Dati input'!$D$32","v":0},{"$f":"IF(A49=\"\",\"\",'Dati input'!$AJ$25)","v":0},1369,3.7506849315068491,{"$error":"#VALUE!"},{"$error":"#VALUE!"}]
[{"$f":"IF(OR(A49='Dati input'!$AF$22,A49=\"\"),\"\",A49+1)","v":46},30,"2024-07-01",{"$f":"IF(A50=\"\",\"\",IF(A50<='Dati input'!$AF$23,'Dati input'!$D$36,'Dati input'!$D$37)+I50+H50)","v":{"$error":"#VALUE!"}},{"$f":"IF(A50=\"\",\"\",IF(A50<='Dati input'!$AF$23,'Dati input'!$D$36,'Dati input'!$D$30/12*PAM!G49))","v":{"$error":"#VALUE!"}},{"$error":"#VALUE!"},{"$error":"#VALUE!"},{"$f":"'Dati input'!$D$32","v":0},{"$f":"IF(A50=\"\",\"\",'Dati input'!$AJ$25)","v":0},1399,3.8328767123287673,{"$error":"#VALUE!"},{"$error":"#VALUE!"}]
[{"$f":"IF(OR(A50='Dati input'!$AF$22,A50=\"\"),\"\",A50+1)","v":47},30,"2024-08-01",{"$f":"IF(A51=\"\",\"\",IF(A51<='Dati input'!$AF$23,'Dati input'!$D$36,'Dati input'!$D$37)+I51+H51)","v":{"$error":"#VALUE!"}},{"$f":"IF(A51=\"\",\"\",IF(A51<='Dati input'!$AF$23,'Dati input'!$D$36,'Dati input'!$D$30/12*PAM!G50))","v":{"$error":"#VALUE!"}},{"$error":"#VALUE!"},{"$error":"#VALUE!"},{"$f":"'Dati input'!$D$32","v":0},{"$f":"IF(A51=\"\",\"\",'Dati input'!$AJ$25)","v":0},1430,3.9178082191780823,{"$error":"#VALUE!"},{"$error":"#VALUE!"}]
[{"$f":"IF(OR(A51='Dati input'!$AF$22,A51=\"\"),\"\",A51+1)","v":48},30,"2024-09-01",{"$f":"IF(A52=\"\",\"\",IF(A52<='Dati input'!$AF$23,'Dati input'!$D$36,'Dati input'!$D$37)+I52+H52)","v":{"$error":"#VALUE!"}},{"$f":"IF(A52=\"\",\"\",IF(A52<='Dati input'!$AF$23,'Dati input'!$D$36,'Dati input'!$D$30/12*PAM!G51))","v":{"$error":"#VALUE!"}},{"$error":"#VALUE!"},{"$error":"#VALUE!"},{"$f":"'Dati input'!$D$32","v":0},{"$f":"IF(A52=\"\",\"\",'Dati input'!$AJ$25)","v":0},1461,4.0027397260273974,{"$error":"#VALUE!"},{"$error":"#VALUE!"}]
[{"$f":"IF(OR(A52='Dati input'!$AF$22,A52=\"\"),\"\",A52+1)","v":49},30,"2024-10-01",{"$f":"IF(A53=\"\",\"\",IF(A53<='Dati input'!$AF$23,'Dati input'!$D$36,'Dati input'!$D$37)+I53+H53)","v":{"$error":"#VALUE!"}},{"$f":"IF(A53=\"\",\"\",IF(A53<='Dati input'!$AF$23,'Dati input'!$D$36,'Dati input'!$D$30/12*PAM!G52))","v":{"$error":"#VALUE!"}},{"$error":"#VALUE!"},{"$error":"#VALUE!"},{"$f":"'Dati input'!$D$32","v":0},{"$f":"IF(A53=\"\",\"\",'Dati input'!$AJ$25)","v":0},1491,4.0849315068493155,{"$error":"#VALUE!"},{"$error":"#VALUE!"}]
[{"$f":"IF(OR(A53='Dati input'!$AF$22,A53=\"\"),\"\",A53+1)","v":50},30,"2024-11-01",{"$f":"IF(A54=\"\",\"\",IF(A54<='Dati input'!$AF$23,'Dati input'!$D$36,'Dati input'!$D$37)+I54+H54)","v":{"$error":"#VALUE!"}},{"$f":"IF(A54=\"\",\"\",IF(A54<='Dati input'!$AF$23,'Dati input'!$D$36,'Dati input'!$D$30/12*PAM!G53))","v":{"$error":"#VALUE!"}},{"$error":"#VALUE!"},{"$error":"#VALUE!"},{"$f":"'Dati input'!$D$32","v":0},{"$f":"IF(A54=\"\",\"\",'Dati input'!$AJ$25)","v":0},1522,4.1698630136986301,{"$error":"#VALUE!"},{"$error":"#VALUE!"}]
[{"$f":"IF(OR(A54='Dati input'!$AF$22,A54=\"\"),\"\",A54+1)","v":51},30,"2024-12-01",{"$f":"IF(A55=\"\",\"\",IF(A55<='Dati input'!$AF$23,'Dati input'!$D$36,'Dati input'!$D$37)+I55+H55)","v":{"$error":"#VALUE!"}},{"$f":"IF(A55=\"\",\"\",IF(A55<='Dati input'!$AF$23,'Dati input'!$D$36,'Dati input'!$D$30/12*PAM!G54))","v":{"$error":"#VALUE!"}},{"$error":"#VALUE!"},{"$error":"#VALUE!"},{"$f":"'Dati input'!$D$32","v":0},{"$f":"IF(A55=\"\",\"\",'Dati input'!$AJ$25)","v":0},1552,4.2520547945205482,{"$error":"#VALUE!"},{"$error":"#VALUE!"}]
[{"$f":"IF(OR(A55='Dati input'!$AF$22,A55=\"\"),\"\",A55+1)","v":52},30,"2025-01-01",{"$f":"IF(A56=\"\",\"\",IF(A56<='Dati input'!$AF$23,'Dati input'!$D$36,'Dati input'!$D$37)+I56+H56)","v":{"$error":"#VALUE!"}},{"$f":"IF(A56=\"\",\"\",IF(A56<='Dati input'!$AF$23,'Dati input'!$D$36,'Dati input'!$D$30/12*PAM!G55))","v":{"$error":"#VALUE!"}},{"$error":"#VALUE!"},{"$error":"#VALUE!"},{"$f":"'Dati input'!$D$32","v":0},{"$f":"IF(A56=\"\",\"\",'Dati input'!$AJ$25)","v":0},1583,4.3369863013698629,{"$error":"#VALUE!"},{"$error":"#VALUE!"}]
[{"$f":"IF(OR(A56='Dati input'!$AF$22,A56=\"\"),\"\",A56+1)","v":53},30,"2025-02-01",{"$f":"IF(A57=\"\",\"\",IF(A57<='Dati input'!$AF$23,'Dati input'!$D$36,'Dati input'!$D$37)+I57+H57)","v":{"$error":"#VALUE!"}},{"$f":"IF(A57=\"\",\"\",IF(A57<='Dati input'!$AF$23,'Dati input'!$D$36,'Dati input'!$D$30/12*PAM!G56))","v":{"$error":"#VALUE!"}},{"$error":"#VALUE!"},{"$error":"#VALUE!"},{"$f":"'Dati input'!$D$32","v":0},{"$f":"IF(A57=\"\",\"\",'Dati input'!$AJ$25)","v":0},1614,4.4219178082191783,{"$error":"#VALUE!"},{"$error":"#VALUE!"}]
[{"$f":"IF(OR(A57='Dati input'!$AF$22,A57=\"\"),\"\",A57+1)","v":54},30,"2025-03-01",{"$f":"IF(A58=\"\",\"\",IF(A58<='Dati input'!$AF$23,'Dati input'!$D$36,'Dati input'!$D$37)+I58+H58)","v":{"$error":"#VALUE!"}},{"$f":"IF(A58=\"\",\"\",IF(A58<='Dati input'!$AF$23,'Dati input'!$D$36,'Dati input'!$D$30/12*PAM!G57))","v":{"$error":"#VALUE!"}},{"$error":"#VALUE!"},{"$error":"#VALUE!"},{"$f":"'Dati input'!$D$32","v":0},{"$f":"IF(A58=\"\",\"\",'Dati input'!$AJ$25)","v":0},1642,4.4986301369863018,{"$error":"#VALUE!"},{"$error":"#VALUE!"}]
[{"$f":"IF(OR(A58='Dati input'!$AF$22,A58=\"\"),\"\",A58+1)","v":55},30,"2025-04-01",{"$f":"IF(A59=\"\",\"\",IF(A59<='Dati input'!$AF$23,'Dati input'!$D$36,'Dati input'!$D$37)+I59+H59)","v":{"$error":"#VALUE!"}},{"$f":"IF(A59=\"\",\"\",IF(A59<='Dati input'!$AF$23,'Dati input'!$D$36,'Dati input'!$D$30/12*PAM!G58))","v":{"$error":"#VALUE!"}},{"$error":"#VALUE!"},{"$error":"#VALUE!"},{"$f":"'Dati input'!$D$32","v":0},{"$f":"IF(A59=\"\",\"\",'Dati input'!$AJ$25)","v":0},1673,4.5835616438356164,{"$error":"#VALUE!"},{"$error":"#VALUE!"}]
[{"$f":"IF(OR(A59='Dati input'!$AF$22,A59=\"\"),\"\",A59+1)","v":56},30,"2025-05-01",{"$f":"IF(A60=\"\",\"\",IF(A60<='Dati input'!$AF$23,'Dati input'!$D$36,'Dati input'!$D$37)+I60+H60)","v":{"$error":"#VALUE!"}},{"$f":"IF(A60=\"\",\"\",IF(A60<='Dati input'!$AF$23,'Dati input'!$D$36,'Dati input'!$D$30/12*PAM!G59))","v":{"$error":"#VALUE!"}},{"$error":"#VALUE!"},{"$error":"#VALUE!"},{"$f":"'Dati input'!$D$32","v":0},{"$f":"IF(A60=\"\",\"\",'Dati input'!$AJ$25)","v":0},1703,4.6657534246575345,{"$error":"#VALUE!"},{"$error":"#VALUE!"}]
[{"$f":"IF(OR(A60='Dati input'!$AF$22,A60=\"\"),\"\",A60+1)","v":57},30,"2025-06-01",{"$f":"IF(A61=\"\",\"\",IF(A61<='Dati input'!$AF$23,'Dati input'!$D$36,'Dati input'!$D$37)+I61+H61)","v":{"$error":"#VALUE!"}},{"$f":"IF(A61=\"\",\"\",IF(A61<='Dati input'!$AF$23,'Dati input'!$D$36,'Dati input'!$D$30/12*PAM!G60))","v":{"$error":"#VALUE!"}},{"$error":"#VALUE!"},{"$error":"#VALUE!"},{"$f":"'Dati input'!$D$32","v":0},{"$f":"IF(A61=\"\",\"\",'Dati input'!$AJ$25)","v":0},1734,4.7506849315068491,{"$error":"#VALUE!"},{"$error":"#VALUE!"}]
[{"$f":"IF(OR(A61='Dati input'!$AF$22,A61=\"\"),\"\",A61+1)","v":58},30,"2025-07-01",{"$f":"IF(A62=\"\",\"\",IF(A62<='Dati input'!$AF$23,'Dati input'!$D$36,'Dati input'!$D$37)+I62+H62)","v":{"$error":"#VALUE!"}},{"$f":"IF(A62=\"\",\"\",IF(A62<='Dati input'!$AF$23,'Dati input'!$D$36,'Dati input'!$D$30/12*PAM!G61))","v":{"$error":"#VALUE!"}},{"$error":"#VALUE!"},{"$error":"#VALUE!"},{"$f":"'Dati input'!$D$32","v":0},{"$f":"IF(A62=\"\",\"\",'Dati input'!$AJ$25)","v":0},1764,4.8328767123287673,{"$error":"#VALUE!"},{"$error":"#VALUE!"}]
[{"$f":"IF(OR(A62='Dati input'!$AF$22,A62=\"\"),\"\",A62+1)","v":59},30,"2025-08-01",{"$f":"IF(A63=\"\",\"\",IF(A63<='Dati input'!$AF$23,'Dati input'!$D$36,'Dati input'!$D$37)+I63+H63)","v":{"$error":"#VALUE!"}},{"$f":"IF(A63=\"\",\"\",IF(A63<='Dati input'!$AF$23,'Dati input'!$D$36,'Dati input'!$D$30/12*PAM!G62))","v":{"$error":"#VALUE!"}},{"$error":"#VALUE!"},{"$error":"#VALUE!"},{"$f":"'Dati input'!$D$32","v":0},{"$f":"IF(A63=\"\",\"\",'Dati input'!$AJ$25)","v":0},1795,4.9178082191780819,{"$error":"#VALUE!"},{"$error":"#VALUE!"}]
[{"$f":"IF(OR(A63='Dati input'!$AF$22,A63=\"\"),\"\",A63+1)","v":60},30,"2025-09-01",{"$f":"IF(A64=\"\",\"\",IF(A64<='Dati input'!$AF$23,'Dati input'!$D$36,'Dati input'!$D$37)+I64+H64)","v":{"$error":"#VALUE!"}},{"$f":"IF(A64=\"\",\"\",IF(A64<='Dati input'!$AF$23,'Dati input'!$D$36,'Dati input'!$D$30/12*PAM!G63))","v":{"$error":"#VALUE!"}},{"$error":"#VALUE!"},{"$error":"#VALUE!"},{"$f":"'Dati input'!$D$32","v":0},{"$f":"IF(A64=\"\",\"\",'Dati input'!$AJ$25)","v":0},1826,5.0027397260273974,{"$error":"#VALUE!"},{"$error":"#VALUE!"}]
[{"$f":"IF(OR(A64='Dati input'!$AF$22,A64=\"\"),\"\",A64+1)","v":61},30,"2025-10-01",{"$f":"IF(A65=\"\",\"\",IF(A65<='Dati input'!$AF$23,'Dati input'!$D$36,'Dati input'!$D$37)+I65+H65)","v":{"$error":"#VALUE!"}},{"$f":"IF(A65=\"\",\"\",IF(A65<='Dati input'!$AF$23,'Dati input'!$D$36,'Dati input'!$D$30/12*PAM!G64))","v":{"$error":"#VALUE!"}},{"$error":"#VALUE!"},{"$error":"#VALUE!"},{"$f":"'Dati input'!$D$32","v":0},{"$f":"IF(A65=\"\",\"\",'Dati input'!$AJ$25)","v":0},1856,5.0849315068493155,{"$error":"#VALUE!"},{"$error":"#VALUE!"}]
[{"$f":"IF(OR(A65='Dati input'!$AF$22,A65=\"\"),\"\",A65+1)","v":62},30,"2025-11-01",{"$f":"IF(A66=\"\",\"\",IF(A66<='Dati input'!$AF$23,'Dati input'!$D$36,'Dati input'!$D$37)+I66+H66)","v":{"$error":"#VALUE!"}},{"$f":"IF(A66=\"\",\"\",IF(A66<='Dati input'!$AF$23,'Dati input'!$D$36,'Dati input'!$D$30/12*PAM!G65))","v":{"$error":"#VALUE!"}},{"$error":"#VALUE!"},{"$error":"#VALUE!"},{"$f":"'Dati input'!$D$32","v":0},{"$f":"IF(A66=\"\",\"\",'Dati input'!$AJ$25)","v":0},1887,5.1698630136986301,{"$error":"#VALUE!"},{"$error":"#VALUE!"}]
[{"$f":"IF(OR(A66='Dati input'!$AF$22,A66=\"\"),\"\",A66+1)","v":63},30,"2025-12-01",{"$f":"IF(A67=\"\",\"\",IF(A67<='Dati input'!$AF$23,'Dati input'!$D$36,'Dati input'!$D$37)+I67+H67)","v":{"$error":"#VALUE!"}},{"$f":"IF(A67=\"\",\"\",IF(A67<='Dati input'!$AF$23,'Dati input'!$D$36,'Dati input'!$D$30/12*PAM!G66))","v":{"$error":"#VALUE!"}},{"$error":"#VALUE!"},{"$error":"#VALUE!"},{"$f":"'Dati input'!$D$32","v":0},{"$f":"IF(A67=\"\",\"\",'Dati input'!$AJ$25)","v":0},1917,5.2520547945205482,{"$error":"#VALUE!"},{"$error":"#VALUE!"}]
[{"$f":"IF(OR(A67='Dati input'!$AF$22,A67=\"\"),\"\",A67+1)","v":64},30,"2026-01-01",{"$f":"IF(A68=\"\",\"\",IF(A68<='Dati input'!$AF$23,'Dati input'!$D$36,'Dati input'!$D$37)+I68+H68)","v":{"$error":"#VALUE!"}},{"$f":"IF(A68=\"\",\"\",IF(A68<='Dati input'!$AF$23,'Dati input'!$D$36,'Dati input'!$D$30/12*PAM!G67))","v":{"$error":"#VALUE!"}},{"$error":"#VALUE!"},{"$error":"#VALUE!"},{"$f":"'Dati input'!$D$32","v":0},{"$f":"IF(A68=\"\",\"\",'Dati input'!$AJ$25)","v":0},1948,5.3369863013698629,{"$error":"#VALUE!"},{"$error":"#VALUE!"}]
[{"$f":"IF(OR(A68='Dati input'!$AF$22,A68=\"\"),\"\",A68+1)","v":65},30,"2026-02-01",{"$f":"IF(A69=\"\",\"\",IF(A69<='Dati input'!$AF$23,'Dati input'!$D$36,'Dati input'!$D$37)+I69+H69)","v":{"$error":"#VALUE!"}},{"$f":"IF(A69=\"\",\"\",IF(A69<='Dati input'!$AF$23,'Dati input'!$D$36,'Dati input'!$D$30/12*PAM!G68))","v":{"$error":"#VALUE!"}},{"$error":"#VALUE!"},{"$error":"#VALUE!"},{"$f":"'Dati input'!$D$32","v":0},{"$f":"IF(A69=\"\",\"\",'Dati input'!$AJ$25)","v":0},1979,5.4219178082191783,{"$error":"#VALUE!"},{"$error":"#VALUE!"}]
[{"$f":"IF(OR(A69='Dati input'!$AF$22,A69=\"\"),\"\",A69+1)","v":66},{"$f":"IF(A70=\"\",\"\",30)","v":30},{"$f":"EDATE(C69,1)","v":"2026-03-01"},{"$f":"IF(A70=\"\",\"\",IF(A70<='Dati input'!$AF$23,'Dati input'!$D$36,'Dati input'!$D$37)+I70+H70)","v":{"$error":"#VALUE!"}},{"$f":"IF(A70=\"\",\"\",IF(A70<='Dati input'!$AF$23,'Dati input'!$D$36,'Dati input'!$D$30/12*PAM!G69))","v":{"$error":"#VALUE!"}},{"$f":"IF(A70=\"\",\"\",D70-E70-I70-H70)","v":{"$error":"#VALUE!"}},{"$f":"IF(A70=\"\",\"\",G69-F70)","v":{"$error":"#VALUE!"}},{"$f":"'Dati input'!$D$32","v":0},{"$f":"IF(A70=\"\",\"\",'Dati input'!$AJ$25)","v":0},2007,{"$f":"J70/365","v":5.4986301369863018},{"$f":"IF(A70=\"\",0,D70)","v":{"$error":"#VALUE!"}},{"$f":"IF(A70=\"\",0,L70/(1+$N$3)^K70)","v":{"$error":"#VALUE!"}}]
[{"$f":"IF(OR(A70='Dati input'!$AF$22,A70=\"\"),\"\",A70+1)","v":67},30,"2026-04-01",{"$f":"IF(A71=\"\",\"\",IF(A71<='Dati input'!$AF$23,'Dati input'!$D$36,'Dati input'!$D$37)+I71+H71)","v":{"$error":"#VALUE!"}},{"$f":"IF(A71=\"\",\"\",IF(A71<='Dati input'!$AF$23,'Dati input'!$D$36,'Dati input'!$D$30/12*PAM!G70))","v":{"$error":"#VALUE!"}},{"$error":"#VALUE!"},{"$error":"#VALUE!"},{"$f":"'Dati input'!$D$32","v":0},{"$f":"IF(A71=\"\",\"\",'Dati input'!$AJ$25)","v":0},{"$f":"J70+C71-C70","v":2038},5.5835616438356164,{"$error":"#VALUE!"},{"$error":"#VALUE!"}]
[{"$f":"IF(OR(A71='Dati input'!$AF$22,A71=\"\"),\"\",A71+1)","v":68},30,"2026-05-01",{"$f":"IF(A72=\"\",\"\",IF(A72<='Dati input'!$AF$23,'Dati input'!$D$36,'Dati input'!$D$37)+I72+H72)","v":{"$error":"#VALUE!"}},{"$f":"IF(A72=\"\",\"\",IF(A72<='Dati input'!$AF$23,'Dati input'!$D$36,'Dati input'!$D$30/12*PAM!G71))","v":{"$error":"#VALUE!"}},{"$error":"#VALUE!"},{"$error":"#VALUE!"},{"$f":"'Dati input'!$D$32","v":0},{"$f":"IF(A72=\"\",\"\",'Dati input'!$AJ$25)","v":0},2068,5.6657534246575345,{"$error":"#VALUE!"},{"$error":"#VALUE!"}]
[{"$f":"IF(OR(A72='Dati input'!$AF$22,A72=\"\"),\"\",A72+1)","v":69},30,"2026-06-01",{"$f":"IF(A73=\"\",\"\",IF(A73<='Dati input'!$AF$23,'Dati input'!$D$36,'Dati input'!$D$37)+I73+H73)","v":{"$error":"#VALUE!"}},{"$f":"IF(A73=\"\",\"\",IF(A73<='Dati input'!$AF$23,'Dati input'!$D$36,'Dati input'!$D$30/12*PAM!G72))","v":{"$error":"#VALUE!"}},{"$error":"#VALUE!"},{"$error":"#VALUE!"},{"$f":"'Dati input'!$D$32","v":0},{"$f":"IF(A73=\"\",\"\",'Dati input'!$AJ$25)","v":0},2099,5.7506849315068491,{"$error":"#VALUE!"},{"$error":"#VALUE!"}]
[{"$f":"IF(OR(A73='Dati input'!$AF$22,A73=\"\"),\"\",A73+1)","v":70},30,"2026-07-01",{"$f":"IF(A74=\"\",\"\",IF(A74<='Dati input'!$AF$23,'Dati input'!$D$36,'Dati input'!$D$37)+I74+H74)","v":{"$error":"#VALUE!"}},{"$f":"IF(A74=\"\",\"\",IF(A74<='Dati input'!$AF$23,'Dati input'!$D$36,'Dati input'!$D$30/12*PAM!G73))","v":{"$error":"#VALUE!"}},{"$error":"#VALUE!"},{"$error":"#VALUE!"},{"$f":"'Dati input'!$D$32","v":0},{"$f":"IF(A74=\"\",\"\",'Dati input'!$AJ$25)","v":0},2129,5.8328767123287673,{"$error":"#VALUE!"},{"$error":"#VALUE!"}]
[{"$f":"IF(OR(A74='Dati input'!$AF$22,A74=\"\"),\"\",A74+1)","v":71},30,"2026-08-01",{"$f":"IF(A75=\"\",\"\",IF(A75<='Dati input'!$AF$23,'Dati input'!$D$36,'Dati input'!$D$37)+I75+H75)","v":{"$error":"#VALUE!"}},{"$f":"IF(A75=\"\",\"\",IF(A75<='Dati input'!$AF$23,'Dati input'!$D$36,'Dati input'!$D$30/12*PAM!G74))","v":{"$error":"#VALUE!"}},{"$error":"#VALUE!"},{"$error":"#VALUE!"},{"$f":"'Dati input'!$D$32","v":0},{"$f":"IF(A75=\"\",\"\",'Dati input'!$AJ$25)","v":0},2160,5.9178082191780819,{"$error":"#VALUE!"},{"$error":"#VALUE!"}]
[{"$f":"IF(OR(A75='Dati input'!$AF$22,A75=\"\"),\"\",A75+1)","v":72},30,"2026-09-01",{"$f":"IF(A76=\"\",\"\",IF(A76<='Dati input'!$AF$23,'Dati input'!$D$36,'Dati input'!$D$37)+I76+H76)","v":{"$error":"#VALUE!"}},{"$f":"IF(A76=\"\",\"\",IF(A76<='Dati input'!$AF$23,'Dati input'!$D$36,'Dati input'!$D$30/12*PAM!G75))","v":{"$error":"#VALUE!"}},{"$error":"#VALUE!"},{"$error":"#VALUE!"},{"$f":"'Dati input'!$D$32","v":0},{"$f":"IF(A76=\"\",\"\",'Dati input'!$AJ$25)","v":0},2191,6.0027397260273974,{"$error":"#VALUE!"},{"$error":"#VALUE!"}]
[{"$f":"IF(OR(A76='Dati input'!$AF$22,A76=\"\"),\"\",A76+1)","v":73},30,"2026-10-01",{"$f":"IF(A77=\"\",\"\",IF(A77<='Dati input'!$AF$23,'Dati input'!$D$36,'Dati input'!$D$37)+I77+H77)","v":{"$error":"#VALUE!"}},{"$f":"IF(A77=\"\",\"\",IF(A77<='Dati input'!$AF$23,'Dati input'!$D$36,'Dati input'!$D$30/12*PAM!G76))","v":{"$error":"#VALUE!"}},{"$error":"#VALUE!"},{"$error":"#VALUE!"},{"$f":"'Dati input'!$D$32","v":0},{"$f":"IF(A77=\"\",\"\",'Dati input'!$AJ$25)","v":0},2221,6.0849315068493155,{"$error":"#VALUE!"},{"$error":"#VALUE!"}]
[{"$f":"IF(OR(A77='Dati input'!$AF$22,A77=\"\"),\"\",A77+1)","v":74},30,"2026-11-01",{"$f":"IF(A78=\"\",\"\",IF(A78<='Dati input'!$AF$23,'Dati input'!$D$36,'Dati input'!$D$37)+I78+H78)","v":{"$error":"#VALUE!"}},{"$f":"IF(A78=\"\",\"\",IF(A78<='Dati input'!$AF$23,'Dati input'!$D$36,'Dati input'!$D$30/12*PAM!G77))","v":{"$error":"#VALUE!"}},{"$error":"#VALUE!"},{"$error":"#VALUE!"},{"$f":"'Dati input'!$D$32","v":0},{"$f":"IF(A78=\"\",\"\",'Dati input'!$AJ$25)","v":0},2252,6.1698630136986301,{"$error":"#VALUE!"},{"$error":"#VALUE!"}]
[{"$f":"IF(OR(A78='Dati input'!$AF$22,A78=\"\"),\"\",A78+1)","v":75},30,"2026-12-01",{"$f":"IF(A79=\"\",\"\",IF(A79<='Dati input'!$AF$23,'Dati input'!$D$36,'Dati input'!$D$37)+I79+H79)","v":{"$error":"#VALUE!"}},{"$f":"IF(A79=\"\",\"\",IF(A79<='Dati input'!$AF$23,'Dati input'!$D$36,'Dati input'!$D$30/12*PAM!G78))","v":{"$error":"#VALUE!"}},{"$error":"#VALUE!"},{"$error":"#VALUE!"},{"$f":"'Dati input'!$D$32","v":0},{"$f":"IF(A79=\"\",\"\",'Dati input'!$AJ$25)","v":0},2282,6.2520547945205482,{"$error":"#VALUE!"},{"$error":"#VALUE!"}]
[{"$f":"IF(OR(A79='Dati input'!$AF$22,A79=\"\"),\"\",A79+1)","v":76},30,"2027-01-01",{"$f":"IF(A80=\"\",\"\",IF(A80<='Dati input'!$AF$23,'Dati input'!$D$36,'Dati input'!$D$37)+I80+H80)","v":{"$error":"#VALUE!"}},{"$f":"IF(A80=\"\",\"\",IF(A80<='Dati input'!$AF$23,'Dati input'!$D$36,'Dati input'!$D$30/12*PAM!G79))","v":{"$error":"#VALUE!"}},{"$error":"#VALUE!"},{"$error":"#VALUE!"},{"$f":"'Dati input'!$D$32","v":0},{"$f":"IF(A80=\"\",\"\",'Dati input'!$AJ$25)","v":0},2313,6.3369863013698629,{"$error":"#VALUE!"},{"$error":"#VALUE!"}]
[{"$f":"IF(OR(A80='Dati input'!$AF$22,A80=\"\"),\"\",A80+1)","v":77},30,"2027-02-01",{"$f":"IF(A81=\"\",\"\",IF(A81<='Dati input'!$AF$23,'Dati input'!$D$36,'Dati input'!$D$37)+I81+H81)","v":{"$error":"#VALUE!"}},{"$f":"IF(A81=\"\",\"\",IF(A81<='Dati input'!$AF$23,'Dati input'!$D$36,'Dati input'!$D$30/12*PAM!G80))","v":{"$error":"#VALUE!"}},{"$error":"#VALUE!"},{"$error":"#VALUE!"},{"$f":"'Dati input'!$D$32","v":0},{"$f":"IF(A81=\"\",\"\",'Dati input'!$AJ$25)","v":0},2344,6.4219178082191783,{"$error":"#VALUE!"},{"$error":"#VALUE!"}]
[{"$f":"IF(OR(A81='Dati input'!$AF$22,A81=\"\"),\"\",A81+1)","v":78},30,"2027-03-01",{"$f":"IF(A82=\"\",\"\",IF(A82<='Dati input'!$AF$23,'Dati input'!$D$36,'Dati input'!$D$37)+I82+H82)","v":{"$error":"#VALUE!"}},{"$f":"IF(A82=\"\",\"\",IF(A82<='Dati input'!$AF$23,'Dati input'!$D$36,'Dati input'!$D$30/12*PAM!G81))","v":{"$error":"#VALUE!"}},{"$error":"#VALUE!"},{"$error":"#VALUE!"},{"$f":"'Dati input'!$D$32","v":0},{"$f":"IF(A82=\"\",\"\",'Dati input'!$AJ$25)","v":0},2372,6.4986301369863018,{"$error":"#VALUE!"},{"$error":"#VALUE!"}]
[{"$f":"IF(OR(A82='Dati input'!$AF$22,A82=\"\"),\"\",A82+1)","v":79},30,"2027-04-01",{"$f":"IF(A83=\"\",\"\",IF(A83<='Dati input'!$AF$23,'Dati input'!$D$36,'Dati input'!$D$37)+I83+H83)","v":{"$error":"#VALUE!"}},{"$f":"IF(A83=\"\",\"\",IF(A83<='Dati input'!$AF$23,'Dati input'!$D$36,'Dati input'!$D$30/12*PAM!G82))","v":{"$error":"#VALUE!"}},{"$error":"#VALUE!"},{"$error":"#VALUE!"},{"$f":"'Dati input'!$D$32","v":0},{"$f":"IF(A83=\"\",\"\",'Dati input'!$AJ$25)","v":0},2403,6.5835616438356164,{"$error":"#VALUE!"},{"$error":"#VALUE!"}]
[{"$f":"IF(OR(A83='Dati input'!$AF$22,A83=\"\"),\"\",A83+1)","v":80},30,"2027-05-01",{"$f":"IF(A84=\"\",\"\",IF(A84<='Dati input'!$AF$23,'Dati input'!$D$36,'Dati input'!$D$37)+I84+H84)","v":{"$error":"#VALUE!"}},{"$f":"IF(A84=\"\",\"\",IF(A84<='Dati input'!$AF$23,'Dati input'!$D$36,'Dati input'!$D$30/12*PAM!G83))","v":{"$error":"#VALUE!"}},{"$error":"#VALUE!"},{"$error":"#VALUE!"},{"$f":"'Dati input'!$D$32","v":0},{"$f":"IF(A84=\"\",\"\",'Dati input'!$AJ$25)","v":0},2433,6.6657534246575345,{"$error":"#VALUE!"},{"$error":"#VALUE!"}]
[{"$f":"IF(OR(A84='Dati input'!$AF$22,A84=\"\"),\"\",A84+1)","v":81},30,"2027-06-01",{"$f":"IF(A85=\"\",\"\",IF(A85<='Dati input'!$AF$23,'Dati input'!$D$36,'Dati input'!$D$37)+I85+H85)","v":{"$error":"#VALUE!"}},{"$f":"IF(A85=\"\",\"\",IF(A85<='Dati input'!$AF$23,'Dati input'!$D$36,'Dati input'!$D$30/12*PAM!G84))","v":{"$error":"#VALUE!"}},{"$error":"#VALUE!"},{"$error":"#VALUE!"},{"$f":"'Dati input'!$D$32","v":0},{"$f":"IF(A85=\"\",\"\",'Dati input'!$AJ$25)","v":0},2464,6.7506849315068491,{"$error":"#VALUE!"},{"$error":"#VALUE!"}]
[{"$f":"IF(OR(A85='Dati input'!$AF$22,A85=\"\"),\"\",A85+1)","v":82},30,"2027-07-01",{"$f":"IF(A86=\"\",\"\",IF(A86<='Dati input'!$AF$23,'Dati input'!$D$36,'Dati input'!$D$37)+I86+H86)","v":{"$error":"#VALUE!"}},{"$f":"IF(A86=\"\",\"\",IF(A86<='Dati input'!$AF$23,'Dati input'!$D$36,'Dati input'!$D$30/12*PAM!G85))","v":{"$error":"#VALUE!"}},{"$error":"#VALUE!"},{"$error":"#VALUE!"},{"$f":"'Dati input'!$D$32","v":0},{"$f":"IF(A86=\"\",\"\",'Dati input'!$AJ$25)","v":0},2494,6.8328767123287673,{"$error":"#VALUE!"},{"$error":"#VALUE!"}]
[{"$f":"IF(OR(A86='Dati input'!$AF$22,A86=\"\"),\"\",A86+1)","v":83},30,"2027-08-01",{"$f":"IF(A87=\"\",\"\",IF(A87<='Dati input'!$AF$23,'Dati input'!$D$36,'Dati input'!$D$37)+I87+H87)","v":{"$error":"#VALUE!"}},{"$f":"IF(A87=\"\",\"\",IF(A87<='Dati input'!$AF$23,'Dati input'!$D$36,'Dati input'!$D$30/12*PAM!G86))","v":{"$error":"#VALUE!"}},{"$error":"#VALUE!"},{"$error":"#VALUE!"},{"$f":"'Dati input'!$D$32","v":0},{"$f":"IF(A87=\"\",\"\",'Dati input'!$AJ$25)","v":0},2525,6.9178082191780819,{"$error":"#VALUE!"},{"$error":"#VALUE!"}]
[{"$f":"IF(OR(A87='Dati input'!$AF$22,A87=\"\"),\"\",A87+1)","v":84},30,"2027-09-01",{"$f":"IF(A88=\"\",\"\",IF(A88<='Dati input'!$AF$23,'Dati input'!$D$36,'Dati input'!$D$37)+I88+H88)","v":{"$error":"#VALUE!"}},{"$f":"IF(A88=\"\",\"\",IF(A88<='Dati input'!$AF$23,'Dati input'!$D$36,'Dati input'!$D$30/12*PAM!G87))","v":{"$error":"#VALUE!"}},{"$error":"#VALUE!"},{"$error":"#VALUE!"},{"$f":"'Dati input'!$D$32","v":0},{"$f":"IF(A88=\"\",\"\",'Dati input'!$AJ$25)","v":0},2556,7.0027397260273974,{"$error":"#VALUE!"},{"$error":"#VALUE!"}]
[{"$f":"IF(OR(A88='Dati input'!$AF$22,A88=\"\"),\"\",A88+1)","v":85},30,"2027-10-01",{"$f":"IF(A89=\"\",\"\",IF(A89<='Dati input'!$AF$23,'Dati input'!$D$36,'Dati input'!$D$37)+I89+H89)","v":{"$error":"#VALUE!"}},{"$f":"IF(A89=\"\",\"\",IF(A89<='Dati input'!$AF$23,'Dati input'!$D$36,'Dati input'!$D$30/12*PAM!G88))","v":{"$error":"#VALUE!"}},{"$error":"#VALUE!"},{"$error":"#VALUE!"},{"$f":"'Dati input'!$D$32","v":0},{"$f":"IF(A89=\"\",\"\",'Dati input'!$AJ$25)","v":0},2586,7.0849315068493155,{"$error":"#VALUE!"},{"$error":"#VALUE!"}]
[{"$f":"IF(OR(A89='Dati input'!$AF$22,A89=\"\"),\"\",A89+1)","v":86},30,"2027-11-01",{"$f":"IF(A90=\"\",\"\",IF(A90<='Dati input'!$AF$23,'Dati input'!$D$36,'Dati input'!$D$37)+I90+H90)","v":{"$error":"#VALUE!"}},{"$f":"IF(A90=\"\",\"\",IF(A90<='Dati input'!$AF$23,'Dati input'!$D$36,'Dati input'!$D$30/12*PAM!G89))","v":{"$error":"#VALUE!"}},{"$error":"#VALUE!"},{"$error":"#VALUE!"},{"$f":"'Dati input'!$D$32","v":0},{"$f":"IF(A90=\"\",\"\",'Dati input'!$AJ$25)","v":0},2617,7.1698630136986301,{"$error":"#VALUE!"},{"$error":"#VALUE!"}]
[{"$f":"IF(OR(A90='Dati input'!$AF$22,A90=\"\"),\"\",A90+1)","v":87},30,"2027-12-01",{"$f":"IF(A91=\"\",\"\",IF(A91<='Dati input'!$AF$23,'Dati input'!$D$36,'Dati input'!$D$37)+I91+H91)","v":{"$error":"#VALUE!"}},{"$f":"IF(A91=\"\",\"\",IF(A91<='Dati input'!$AF$23,'Dati input'!$D$36,'Dati input'!$D$30/12*PAM!G90))","v":{"$error":"#VALUE!"}},{"$error":"#VALUE!"},{"$error":"#VALUE!"},{"$f":"'Dati input'!$D$32","v":0},{"$f":"IF(A91=\"\",\"\",'Dati input'!$AJ$25)","v":0},2647,7.2520547945205482,{"$error":"#VALUE!"},{"$error":"#VALUE!"}]
[{"$f":"IF(OR(A91='Dati input'!$AF$22,A91=\"\"),\"\",A91+1)","v":88},30,"2028-01-01",{"$f":"IF(A92=\"\",\"\",IF(A92<='Dati input'!$AF$23,'Dati input'!$D$36,'Dati input'!$D$37)+I92+H92)","v":{"$error":"#VALUE!"}},{"$f":"IF(A92=\"\",\"\",IF(A92<='Dati input'!$AF$23,'Dati input'!$D$36,'Dati input'!$D$30/12*PAM!G91))","v":{"$error":"#VALUE!"}},{"$error":"#VALUE!"},{"$error":"#VALUE!"},{"$f":"'Dati input'!$D$32","v":0},{"$f":"IF(A92=\"\",\"\",'Dati input'!$AJ$25)","v":0},2678,7.3369863013698629,{"$error":"#VALUE!"},{"$error":"#VALUE!"}]
[{"$f":"IF(OR(A92='Dati input'!$AF$22,A92=\"\"),\"\",A92+1)","v":89},30,"2028-02-01",{"$f":"IF(A93=\"\",\"\",IF(A93<='Dati input'!$AF$23,'Dati input'!$D$36,'Dati input'!$D$37)+I93+H93)","v":{"$error":"#VALUE!"}},{"$f":"IF(A93=\"\",\"\",IF(A93<='Dati input'!$AF$23,'Dati input'!$D$36,'Dati input'!$D$30/12*PAM!G92))","v":{"$error":"#VALUE!"}},{"$error":"#VALUE!"},{"$error":"#VALUE!"},{"$f":"'Dati input'!$D$32","v":0},{"$f":"IF(A93=\"\",\"\",'Dati input'!$AJ$25)","v":0},2709,7.4219178082191783,{"$error":"#VALUE!"},{"$error":"#VALUE!"}]
[{"$f":"IF(OR(A93='Dati input'!$AF$22,A93=\"\"),\"\",A93+1)","v":90},30,"2028-03-01",{"$f":"IF(A94=\"\",\"\",IF(A94<='Dati input'!$AF$23,'Dati input'!$D$36,'Dati input'!$D$37)+I94+H94)","v":{"$error":"#VALUE!"}},{"$f":"IF(A94=\"\",\"\",IF(A94<='Dati input'!$AF$23,'Dati input'!$D$36,'Dati input'!$D$30/12*PAM!G93))","v":{"$error":"#VALUE!"}},{"$error":"#VALUE!"},{"$error":"#VALUE!"},{"$f":"'Dati input'!$D$32","v":0},{"$f":"IF(A94=\"\",\"\",'Dati input'!$AJ$25)","v":0},2738,7.5013698630136982,{"$error":"#VALUE!"},{"$error":"#VALUE!"}]
[{"$f":"IF(OR(A94='Dati input'!$AF$22,A94=\"\"),\"\",A94+1)","v":91},30,"2028-04-01",{"$f":"IF(A95=\"\",\"\",IF(A95<='Dati input'!$AF$23,'Dati input'!$D$36,'Dati input'!$D$37)+I95+H95)","v":{"$error":"#VALUE!"}},{"$f":"IF(A95=\"\",\"\",IF(A95<='Dati input'!$AF$23,'Dati input'!$D$36,'Dati input'!$D$30/12*PAM!G94))","v":{"$error":"#VALUE!"}},{"$error":"#VALUE!"},{"$error":"#VALUE!"},{"$f":"'Dati input'!$D$32","v":0},{"$f":"IF(A95=\"\",\"\",'Dati input'!$AJ$25)","v":0},2769,7.5863013698630137,{"$error":"#VALUE!"},{"$error":"#VALUE!"}]
[{"$f":"IF(OR(A95='Dati input'!$AF$22,A95=\"\"),\"\",A95+1)","v":92},30,"2028-05-01",{"$f":"IF(A96=\"\",\"\",IF(A96<='Dati input'!$AF$23,'Dati input'!$D$36,'Dati input'!$D$37)+I96+H96)","v":{"$error":"#VALUE!"}},{"$f":"IF(A96=\"\",\"\",IF(A96<='Dati input'!$AF$23,'Dati input'!$D$36,'Dati input'!$D$30/12*PAM!G95))","v":{"$error":"#VALUE!"}},{"$error":"#VALUE!"},{"$error":"#VALUE!"},{"$f":"'Dati input'!$D$32","v":0},{"$f":"IF(A96=\"\",\"\",'Dati input'!$AJ$25)","v":0},2799,7.6684931506849319,{"$error":"#VALUE!"},{"$error":"#VALUE!"}]
[{"$f":"IF(OR(A96='Dati input'!$AF$22,A96=\"\"),\"\",A96+1)","v":93},30,"2028-06-01",{"$f":"IF(A97=\"\",\"\",IF(A97<='Dati input'!$AF$23,'Dati input'!$D$36,'Dati input'!$D$37)+I97+H97)","v":{"$error":"#VALUE!"}},{"$f":"IF(A97=\"\",\"\",IF(A97<='Dati input'!$AF$23,'Dati input'!$D$36,'Dati input'!$D$30/12*PAM!G96))","v":{"$error":"#VALUE!"}},{"$error":"#VALUE!"},{"$error":"#VALUE!"},{"$f":"'Dati input'!$D$32","v":0},{"$f":"IF(A97=\"\",\"\",'Dati input'!$AJ$25)","v":0},2830,7.7534246575342465,{"$error":"#VALUE!"},{"$error":"#VALUE!"}]
[{"$f":"IF(OR(A97='Dati input'!$AF$22,A97=\"\"),\"\",A97+1)","v":94},30,"2028-07-01",{"$f":"IF(A98=\"\",\"\",IF(A98<='Dati input'!$AF$23,'Dati input'!$D$36,'Dati input'!$D$37)+I98+H98)","v":{"$error":"#VALUE!"}},{"$f":"IF(A98=\"\",\"\",IF(A98<='Dati input'!$AF$23,'Dati input'!$D$36,'Dati input'!$D$30/12*PAM!G97))","v":{"$error":"#VALUE!"}},{"$error":"#VALUE!"},{"$error":"#VALUE!"},{"$f":"'Dati input'!$D$32","v":0},{"$f":"IF(A98=\"\",\"\",'Dati input'!$AJ$25)","v":0},2860,7.8356164383561646,{"$error":"#VALUE!"},{"$error":"#VALUE!"}]
[{"$f":"IF(OR(A98='Dati input'!$AF$22,A98=\"\"),\"\",A98+1)","v":95},30,"2028-08-01",{"$f":"IF(A99=\"\",\"\",IF(A99<='Dati input'!$AF$23,'Dati input'!$D$36,'Dati input'!$D$37)+I99+H99)","v":{"$error":"#VALUE!"}},{"$f":"IF(A99=\"\",\"\",IF(A99<='Dati input'!$AF$23,'Dati input'!$D$36,'Dati input'!$D$30/12*PAM!G98))","v":{"$error":"#VALUE!"}},{"$error":"#VALUE!"},{"$error":"#VALUE!"},{"$f":"'Dati input'!$D$32","v":0},{"$f":"IF(A99=\"\",\"\",'Dati input'!$AJ$25)","v":0},2891,7.9205479452054792,{"$error":"#VALUE!"},{"$error":"#VALUE!"}]
[{"$f":"IF(OR(A99='Dati input'!$AF$22,A99=\"\"),\"\",A99+1)","v":96},30,"2028-09-01",{"$f":"IF(A100=\"\",\"\",IF(A100<='Dati input'!$AF$23,'Dati input'!$D$36,'Dati input'!$D$37)+I100+H100)","v":{"$error":"#VALUE!"}},{"$f":"IF(A100=\"\",\"\",IF(A100<='Dati input'!$AF$23,'Dati input'!$D$36,'Dati input'!$D$30/12*PAM!G99))","v":{"$error":"#VALUE!"}},{"$error":"#VALUE!"},{"$error":"#VALUE!"},{"$f":"'Dati input'!$D$32","v":0},{"$f":"IF(A100=\"\",\"\",'Dati input'!$AJ$25)","v":0},2922,8.0054794520547947,{"$error":"#VALUE!"},{"$error":"#VALUE!"}]
[{"$f":"IF(OR(A100='Dati input'!$AF$22,A100=\"\"),\"\",A100+1)","v":97},30,"2028-10-01",{"$f":"IF(A101=\"\",\"\",IF(A101<='Dati input'!$AF$23,'Dati input'!$D$36,'Dati input'!$D$37)+I101+H101)","v":{"$error":"#VALUE!"}},{"$f":"IF(A101=\"\",\"\",IF(A101<='Dati input'!$AF$23,'Dati input'!$D$36,'Dati input'!$D$30/12*PAM!G100))","v":{"$error":"#VALUE!"}},{"$error":"#VALUE!"},{"$error":"#VALUE!"},{"$f":"'Dati input'!$D$32","v":0},{"$f":"IF(A101=\"\",\"\",'Dati input'!$AJ$25)","v":0},2952,8.087671232876712,{"$error":"#VALUE!"},{"$error":"#VALUE!"}]
[{"$f":"IF(OR(A101='Dati input'!$AF$22,A101=\"\"),\"\",A101+1)","v":98},30,"2028-11-01",{"$f":"IF(A102=\"\",\"\",IF(A102<='Dati input'!$AF$23,'Dati input'!$D$36,'Dati input'!$D$37)+I102+H102)","v":{"$error":"#VALUE!"}},{"$f":"IF(A102=\"\",\"\",IF(A102<='Dati input'!$AF$23,'Dati input'!$D$36,'Dati input'!$D$30/12*PAM!G101))","v":{"$error":"#VALUE!"}},{"$error":"#VALUE!"},{"$error":"#VALUE!"},{"$f":"'Dati input'!$D$32","v":0},{"$f":"IF(A102=\"\",\"\",'Dati input'!$AJ$25)","v":0},2983,8.1726027397260275,{"$error":"#VALUE!"},{"$error":"#VALUE!"}]
[{"$f":"IF(OR(A102='Dati input'!$AF$22,A102=\"\"),\"\",A102+1)","v":99},30,"2028-12-01",{"$f":"IF(A103=\"\",\"\",IF(A103<='Dati input'!$AF$23,'Dati input'!$D$36,'Dati input'!$D$37)+I103+H103)","v":{"$error":"#VALUE!"}},{"$f":"IF(A103=\"\",\"\",IF(A103<='Dati input'!$AF$23,'Dati input'!$D$36,'Dati input'!$D$30/12*PAM!G102))","v":{"$error":"#VALUE!"}},{"$error":"#VALUE!"},{"$error":"#VALUE!"},{"$f":"'Dati input'!$D$32","v":0},{"$f":"IF(A103=\"\",\"\",'Dati input'!$AJ$25)","v":0},3013,8.2547945205479447,{"$error":"#VALUE!"},{"$error":"#VALUE!"}]
[{"$f":"IF(OR(A103='Dati input'!$AF$22,A103=\"\"),\"\",A103+1)","v":100},30,"2029-01-01",{"$f":"IF(A104=\"\",\"\",IF(A104<='Dati input'!$AF$23,'Dati input'!$D$36,'Dati input'!$D$37)+I104+H104)","v":{"$error":"#VALUE!"}},{"$f":"IF(A104=\"\",\"\",IF(A104<='Dati input'!$AF$23,'Dati input'!$D$36,'Dati input'!$D$30/12*PAM!G103))","v":{"$error":"#VALUE!"}},{"$error":"#VALUE!"},{"$error":"#VALUE!"},{"$f":"'Dati input'!$D$32","v":0},{"$f":"IF(A104=\"\",\"\",'Dati input'!$AJ$25)","v":0},3044,8.3397260273972602,{"$error":"#VALUE!"},{"$error":"#VALUE!"}]
[{"$f":"IF(OR(A104='Dati input'!$AF$22,A104=\"\"),\"\",A104+1)","v":101},30,"2029-02-01",{"$f":"IF(A105=\"\",\"\",IF(A105<='Dati input'!$AF$23,'Dati input'!$D$36,'Dati input'!$D$37)+I105+H105)","v":{"$error":"#VALUE!"}},{"$f":"IF(A105=\"\",\"\",IF(A105<='Dati input'!$AF$23,'Dati input'!$D$36,'Dati input'!$D$30/12*PAM!G104))","v":{"$error":"#VALUE!"}},{"$error":"#VALUE!"},{"$error":"#VALUE!"},{"$f":"'Dati input'!$D$32","v":0},{"$f":"IF(A105=\"\",\"\",'Dati input'!$AJ$25)","v":0},3075,8.4246575342465757,{"$error":"#VALUE!"},{"$error":"#VALUE!"}]
[{"$f":"IF(OR(A105='Dati input'!$AF$22,A105=\"\"),\"\",A105+1)","v":102},30,"2029-03-01",{"$f":"IF(A106=\"\",\"\",IF(A106<='Dati input'!$AF$23,'Dati input'!$D$36,'Dati input'!$D$37)+I106+H106)","v":{"$error":"#VALUE!"}},{"$f":"IF(A106=\"\",\"\",IF(A106<='Dati input'!$AF$23,'Dati input'!$D$36,'Dati input'!$D$30/12*PAM!G105))","v":{"$error":"#VALUE!"}},{"$error":"#VALUE!"},{"$error":"#VALUE!"},{"$f":"'Dati input'!$D$32","v":0},{"$f":"IF(A106=\"\",\"\",'Dati input'!$AJ$25)","v":0},3103,8.5013698630136982,{"$error":"#VALUE!"},{"$error":"#VALUE!"}]
[{"$f":"IF(OR(A106='Dati input'!$AF$22,A106=\"\"),\"\",A106+1)","v":103},30,"2029-04-01",{"$f":"IF(A107=\"\",\"\",IF(A107<='Dati input'!$AF$23,'Dati input'!$D$36,'Dati input'!$D$37)+I107+H107)","v":{"$error":"#VALUE!"}},{"$f":"IF(A107=\"\",\"\",IF(A107<='Dati input'!$AF$23,'Dati input'!$D$36,'Dati input'!$D$30/12*PAM!G106))","v":{"$error":"#VALUE!"}},{"$error":"#VALUE!"},{"$error":"#VALUE!"},{"$f":"'Dati input'!$D$32","v":0},{"$f":"IF(A107=\"\",\"\",'Dati input'!$AJ$25)","v":0},3134,8.5863013698630137,{"$error":"#VALUE!"},{"$error":"#VALUE!"}]
[{"$f":"IF(OR(A107='Dati input'!$AF$22,A107=\"\"),\"\",A107+1)","v":104},30,"2029-05-01",{"$f":"IF(A108=\"\",\"\",IF(A108<='Dati input'!$AF$23,'Dati input'!$D$36,'Dati input'!$D$37)+I108+H108)","v":{"$error":"#VALUE!"}},{"$f":"IF(A108=\"\",\"\",IF(A108<='Dati input'!$AF$23,'Dati input'!$D$36,'Dati input'!$D$30/12*PAM!G107))","v":{"$error":"#VALUE!"}},{"$error":"#VALUE!"},{"$error":"#VALUE!"},{"$f":"'Dati input'!$D$32","v":0},{"$f":"IF(A108=\"\",\"\",'Dati input'!$AJ$25)","v":0},3164,8.668493150684931,{"$error":"#VALUE!"},{"$error":"#VALUE!"}]
[{"$f":"IF(OR(A108='Dati input'!$AF$22,A108=\"\"),\"\",A108+1)","v":105},30,"2029-06-01",{"$f":"IF(A109=\"\",\"\",IF(A109<='Dati input'!$AF$23,'Dati input'!$D$36,'Dati input'!$D$37)+I109+H109)","v":{"$error":"#VALUE!"}},{"$f":"IF(A109=\"\",\"\",IF(A109<='Dati input'!$AF$23,'Dati input'!$D$36,'Dati input'!$D$30/12*PAM!G108))","v":{"$error":"#VALUE!"}},{"$error":"#VALUE!"},{"$error":"#VALUE!"},{"$f":"'Dati input'!$D$32","v":0},{"$f":"IF(A109=\"\",\"\",'Dati input'!$AJ$25)","v":0},3195,8.7534246575342465,{"$error":"#VALUE!"},{"$error":"#VALUE!"}]
[{"$f":"IF(OR(A109='Dati input'!$AF$22,A109=\"\"),\"\",A109+1)","v":106},30,"2029-07-01",{"$f":"IF(A110=\"\",\"\",IF(A110<='Dati input'!$AF$23,'Dati input'!$D$36,'Dati input'!$D$37)+I110+H110)","v":{"$error":"#VALUE!"}},{"$f":"IF(A110=\"\",\"\",IF(A110<='Dati input'!$AF$23,'Dati input'!$D$36,'Dati input'!$D$30/12*PAM!G109))","v":{"$error":"#VALUE!"}},{"$error":"#VALUE!"},{"$error":"#VALUE!"},{"$f":"'Dati input'!$D$32","v":0},{"$f":"IF(A110=\"\",\"\",'Dati input'!$AJ$25)","v":0},3225,8.8356164383561637,{"$error":"#VALUE!"},{"$error":"#VALUE!"}]
[{"$f":"IF(OR(A110='Dati input'!$AF$22,A110=\"\"),\"\",A110+1)","v":107},30,"2029-08-01",{"$f":"IF(A111=\"\",\"\",IF(A111<='Dati input'!$AF$23,'Dati input'!$D$36,'Dati input'!$D$37)+I111+H111)","v":{"$error":"#VALUE!"}},{"$f":"IF(A111=\"\",\"\",IF(A111<='Dati input'!$AF$23,'Dati input'!$D$36,'Dati input'!$D$30/12*PAM!G110))","v":{"$error":"#VALUE!"}},{"$error":"#VALUE!"},{"$error":"#VALUE!"},{"$f":"'Dati input'!$D$32","v":0},{"$f":"IF(A111=\"\",\"\",'Dati input'!$AJ$25)","v":0},3256,8.9205479452054792,{"$error":"#VALUE!"},{"$error":"#VALUE!"}]
[{"$f":"IF(OR(A111='Dati input'!$AF$22,A111=\"\"),\"\",A111+1)","v":108},30,"2029-09-01",{"$f":"IF(A112=\"\",\"\",IF(A112<='Dati input'!$AF$23,'Dati input'!$D$36,'Dati input'!$D$37)+I112+H112)","v":{"$error":"#VALUE!"}},{"$f":"IF(A112=\"\",\"\",IF(A112<='Dati input'!$AF$23,'Dati input'!$D$36,'Dati input'!$D$30/12*PAM!G111))","v":{"$error":"#VALUE!"}},{"$error":"#VALUE!"},{"$error":"#VALUE!"},{"$f":"'Dati input'!$D$32","v":0},{"$f":"IF(A112=\"\",\"\",'Dati input'!$AJ$25)","v":0},3287,9.0054794520547947,{"$error":"#VALUE!"},{"$error":"#VALUE!"}]
[{"$f":"IF(OR(A112='Dati input'!$AF$22,A112=\"\"),\"\",A112+1)","v":109},30,"2029-10-01",{"$f":"IF(A113=\"\",\"\",IF(A113<='Dati input'!$AF$23,'Dati input'!$D$36,'Dati input'!$D$37)+I113+H113)","v":{"$error":"#VALUE!"}},{"$f":"IF(A113=\"\",\"\",IF(A113<='Dati input'!$AF$23,'Dati input'!$D$36,'Dati input'!$D$30/12*PAM!G112))","v":{"$error":"#VALUE!"}},{"$error":"#VALUE!"},{"$error":"#VALUE!"},{"$f":"'Dati input'!$D$32","v":0},{"$f":"IF(A113=\"\",\"\",'Dati input'!$AJ$25)","v":0},3317,9.087671232876712,{"$error":"#VALUE!"},{"$error":"#VALUE!"}]
[{"$f":"IF(OR(A113='Dati input'!$AF$22,A113=\"\"),\"\",A113+1)","v":110},30,"2029-11-01",{"$f":"IF(A114=\"\",\"\",IF(A114<='Dati input'!$AF$23,'Dati input'!$D$36,'Dati input'!$D$37)+I114+H114)","v":{"$error":"#VALUE!"}},{"$f":"IF(A114=\"\",\"\",IF(A114<='Dati input'!$AF$23,'Dati input'!$D$36,'Dati input'!$D$30/12*PAM!G113))","v":{"$error":"#VALUE!"}},{"$error":"#VALUE!"},{"$error":"#VALUE!"},{"$f":"'Dati input'!$D$32","v":0},{"$f":"IF(A114=\"\",\"\",'Dati input'!$AJ$25)","v":0},3348,9.1726027397260275,{"$error":"#VALUE!"},{"$error":"#VALUE!"}]
[{"$f":"IF(OR(A114='Dati input'!$AF$22,A114=\"\"),\"\",A114+1)","v":111},30,"2029-12-01",{"$f":"IF(A115=\"\",\"\",IF(A115<='Dati input'!$AF$23,'Dati input'!$D$36,'Dati input'!$D$37)+I115+H115)","v":{"$error":"#VALUE!"}},{"$f":"IF(A115=\"\",\"\",IF(A115<='Dati input'!$AF$23,'Dati input'!$D$36,'Dati input'!$D$30/12*PAM!G114))","v":{"$error":"#VALUE!"}},{"$error":"#VALUE!"},{"$error":"#VALUE!"},{"$f":"'Dati input'!$D$32","v":0},{"$f":"IF(A115=\"\",\"\",'Dati input'!$AJ$25)","v":0},3378,9.2547945205479447,{"$error":"#VALUE!"},{"$error":"#VALUE!"}]
[{"$f":"IF(OR(A115='Dati input'!$AF$22,A115=\"\"),\"\",A115+1)","v":112},30,"2030-01-01",{"$f":"IF(A116=\"\",\"\",IF(A116<='Dati input'!$AF$23,'Dati input'!$D$36,'Dati input'!$D$37)+I116+H116)","v":{"$error":"#VALUE!"}},{"$f":"IF(A116=\"\",\"\",IF(A116<='Dati input'!$AF$23,'Dati input'!$D$36,'Dati input'!$D$30/12*PAM!G115))","v":{"$error":"#VALUE!"}},{"$error":"#VALUE!"},{"$error":"#VALUE!"},{"$f":"'Dati input'!$D$32","v":0},{"$f":"IF(A116=\"\",\"\",'Dati input'!$AJ$25)","v":0},3409,9.3397260273972602,{"$error":"#VALUE!"},{"$error":"#VALUE!"}]
[{"$f":"IF(OR(A116='Dati input'!$AF$22,A116=\"\"),\"\",A116+1)","v":113},30,"2030-02-01",{"$f":"IF(A117=\"\",\"\",IF(A117<='Dati input'!$AF$23,'Dati input'!$D$36,'Dati input'!$D$37)+I117+H117)","v":{"$error":"#VALUE!"}},{"$f":"IF(A117=\"\",\"\",IF(A117<='Dati input'!$AF$23,'Dati input'!$D$36,'Dati input'!$D$30/12*PAM!G116))","v":{"$error":"#VALUE!"}},{"$error":"#VALUE!"},{"$error":"#VALUE!"},{"$f":"'Dati input'!$D$32","v":0},{"$f":"IF(A117=\"\",\"\",'Dati input'!$AJ$25)","v":0},3440,9.4246575342465757,{"$error":"#VALUE!"},{"$error":"#VALUE!"}]
[{"$f":"IF(OR(A117='Dati input'!$AF$22,A117=\"\"),\"\",A117+1)","v":114},30,"2030-03-01",{"$f":"IF(A118=\"\",\"\",IF(A118<='Dati input'!$AF$23,'Dati input'!$D$36,'Dati input'!$D$37)+I118+H118)","v":{"$error":"#VALUE!"}},{"$f":"IF(A118=\"\",\"\",IF(A118<='Dati input'!$AF$23,'Dati input'!$D$36,'Dati input'!$D$30/12*PAM!G117))","v":{"$error":"#VALUE!"}},{"$error":"#VALUE!"},{"$error":"#VALUE!"},{"$f":"'Dati input'!$D$32","v":0},{"$f":"IF(A118=\"\",\"\",'Dati input'!$AJ$25)","v":0},3468,9.5013698630136982,{"$error":"#VALUE!"},{"$error":"#VALUE!"}]
[{"$f":"IF(OR(A118='Dati input'!$AF$22,A118=\"\"),\"\",A118+1)","v":115},30,"2030-04-01",{"$f":"IF(A119=\"\",\"\",IF(A119<='Dati input'!$AF$23,'Dati input'!$D$36,'Dati input'!$D$37)+I119+H119)","v":{"$error":"#VALUE!"}},{"$f":"IF(A119=\"\",\"\",IF(A119<='Dati input'!$AF$23,'Dati input'!$D$36,'Dati input'!$D$30/12*PAM!G118))","v":{"$error":"#VALUE!"}},{"$error":"#VALUE!"},{"$error":"#VALUE!"},{"$f":"'Dati input'!$D$32","v":0},{"$f":"IF(A119=\"\",\"\",'Dati input'!$AJ$25)","v":0},3499,9.5863013698630137,{"$error":"#VALUE!"},{"$error":"#VALUE!"}]
[{"$f":"IF(OR(A119='Dati input'!$AF$22,A119=\"\"),\"\",A119+1)","v":116},30,"2030-05-01",{"$f":"IF(A120=\"\",\"\",IF(A120<='Dati input'!$AF$23,'Dati input'!$D$36,'Dati input'!$D$37)+I120+H120)","v":{"$error":"#VALUE!"}},{"$f":"IF(A120=\"\",\"\",IF(A120<='Dati input'!$AF$23,'Dati input'!$D$36,'Dati input'!$D$30/12*PAM!G119))","v":{"$error":"#VALUE!"}},{"$error":"#VALUE!"},{"$error":"#VALUE!"},{"$f":"'Dati input'!$D$32","v":0},{"$f":"IF(A120=\"\",\"\",'Dati input'!$AJ$25)","v":0},3529,9.668493150684931,{"$error":"#VALUE!"},{"$error":"#VALUE!"}]
[{"$f":"IF(OR(A120='Dati input'!$AF$22,A120=\"\"),\"\",A120+1)","v":117},30,"2030-06-01",{"$f":"IF(A121=\"\",\"\",IF(A121<='Dati input'!$AF$23,'Dati input'!$D$36,'Dati input'!$D$37)+I121+H121)","v":{"$error":"#VALUE!"}},{"$f":"IF(A121=\"\",\"\",IF(A121<='Dati input'!$AF$23,'Dati input'!$D$36,'Dati input'!$D$30/12*PAM!G120))","v":{"$error":"#VALUE!"}},{"$error":"#VALUE!"},{"$error":"#VALUE!"},{"$f":"'Dati input'!$D$32","v":0},{"$f":"IF(A121=\"\",\"\",'Dati input'!$AJ$25)","v":0},3560,9.7534246575342465,{"$error":"#VALUE!"},{"$error":"#VALUE!"}]
[{"$f":"IF(OR(A121='Dati input'!$AF$22,A121=\"\"),\"\",A121+1)","v":118},30,"2030-07-01",{"$f":"IF(A122=\"\",\"\",IF(A122<='Dati input'!$AF$23,'Dati input'!$D$36,'Dati input'!$D$37)+I122+H122)","v":{"$error":"#VALUE!"}},{"$f":"IF(A122=\"\",\"\",IF(A122<='Dati input'!$AF$23,'Dati input'!$D$36,'Dati input'!$D$30/12*PAM!G121))","v":{"$error":"#VALUE!"}},{"$error":"#VALUE!"},{"$error":"#VALUE!"},{"$f":"'Dati input'!$D$32","v":0},{"$f":"IF(A122=\"\",\"\",'Dati input'!$AJ$25)","v":0},3590,9.8356164383561637,{"$error":"#VALUE!"},{"$error":"#VALUE!"}]
[{"$f":"IF(OR(A122='Dati input'!$AF$22,A122=\"\"),\"\",A122+1)","v":119},30,"2030-08-01",{"$f":"IF(A123=\"\",\"\",IF(A123<='Dati input'!$AF$23,'Dati input'!$D$36,'Dati input'!$D$37)+I123+H123)","v":{"$error":"#VALUE!"}},{"$f":"IF(A123=\"\",\"\",IF(A123<='Dati input'!$AF$23,'Dati input'!$D$36,'Dati input'!$D$30/12*PAM!G122))","v":{"$error":"#VALUE!"}},{"$error":"#VALUE!"},{"$error":"#VALUE!"},{"$f":"'Dati input'!$D$32","v":0},{"$f":"IF(A123=\"\",\"\",'Dati input'!$AJ$25)","v":0},3621,9.9205479452054792,{"$error":"#VALUE!"},{"$error":"#VALUE!"}]
[{"$f":"IF(OR(A123='Dati input'!$AF$22,A123=\"\"),\"\",A123+1)","v":120},30,"2030-09-01",{"$f":"IF(A124=\"\",\"\",IF(A124<='Dati input'!$AF$23,'Dati input'!$D$36,'Dati input'!$D$37)+I124+H124)","v":{"$error":"#VALUE!"}},{"$f":"IF(A124=\"\",\"\",IF(A124<='Dati input'!$AF$23,'Dati input'!$D$36,'Dati input'!$D$30/12*PAM!G123))","v":{"$error":"#VALUE!"}},{"$error":"#VALUE!"},{"$error":"#VALUE!"},{"$f":"'Dati input'!$D$32","v":0},{"$f":"IF(A124=\"\",\"\",'Dati input'!$AJ$25)","v":0},3652,10.005479452054795,{"$error":"#VALUE!"},{"$error":"#VALUE!"}]

{"sheet":"Proposta contrattuale","index":2,"n_rows":106,"n_cols":4,"rows_kept":106,"cut":false,"hidden":true,"merged":[[88,5,88,8],[41,5,41,8],[26,2,26,8],[14,3,14,8],[15,3,15,8],[19,3,19,8],[20,3,20,8],[21,3,21,8],[22,3,22,8],[23,2,23,3],[23,4,23,5],[24,2,24,8],[35,2,35,8],[36,2,36,8],[37,2,37,8],[56,2,56,8],[2,5,2,8],[5,2,5,8],[9,2,9,8],[10,2,10,8],[11,2,11,8],[13,3,13,8],[32,2,32,8],[31,2,31,8],[53,2,53,8],[54,2,54,8],[50,2,50,8],[52,2,52,8],[25,2,25,8],[57,2,57,8],[48,2,48,8],[27,2,27,8],[29,2,29,8],[30,2,30,8],[33,2,33,8],[34,2,34,8],[44,2,44,8],[45,2,45,8],[46,2,46,8],[47,2,47,8],[49,2,49,8],[51,2,51,8],[98,2,98,8],[105,2,105,8],[108,5,108,8],[91,2,91,8],[59,2,59,8],[60,2,60,8],[66,5,66,8],[69,2,69,8],[71,2,71,8],[73,2,73,8],[61,2,61,8],[62,2,62,8],[77,5,77,8],[80,2,80,8],[82,2,82,8],[84,2,84,8]]}
[]
[]
[]
[]
[]
[null,null,"Spett.le \nINTESA SANPAOLO SPA"]
[null,null,"Luogo",{"$f":"IF('Dati input'!E9=\"\",\"\",IF('Dati input'!E9<>\"\",'Dati input'!E9,'Dati input'!E15))","v":""}]
[null,null,"Data",{"$f":"'Dati input'!AG30","v":"2020-08-31"}]
[]
[null,null,"Formuliamo, sulla base dello schema contrattuale predisposto dalla Banca e da noi compilato con l’ausilio del simulatore messo a disposizione della Banca, la Proposta Contrattuale sotto riportata. Ai fini della conclusione del contratto, restiamo in attesa di ricevere l’Accettazione della Banca. A tale proposito, prendiamo atto che la tempistica media stimata dalla Banca per l'evasione positiva della richiesta di finanziamento è di 8 giorni dalla ricezione della documentazione completa (dato rilevato al 30.06.2020 e soggetto ad aggiornamento)."]
[null,null,"PROPOSTA CONTRATTUALE"]
[null,null,"Oggetto: finanziamento finalizzato a fare fronte all’emergenza COVID-19 con copertura del 100 percento da parte del Fondo centrale di garanzia.\n\nArt. 13, comma 1, lettere m) e m-bis) decreto-legge 8 aprile 2020, n. 23, convertito, con modificazioni, dalla legge 5 giugno 2020, n. 40."]
[]
[null,null,"Ragione / Denominazione sociale",{"$f":"IF('Dati input'!D8<>\"\",'Dati input'!D8,\"\")","v":""}]
[null,null,"Sede",{"$f":"IF('Dati input'!E9<>\"\",CONCATENATE('Dati input'!E9,\", \",'Dati input'!S9),\"\")","v":""}]
[null,null,"Partita iva / Codice fiscale",{"$f":"IF('Dati input'!D10<>\"\",'Dati input'!D10,\"\")","v":""}]
[]
[null,null,"oppure"]
[]
[null,null,"Cognome e Nome",{"$f":"IF('Dati input'!D14<>\"\",'Dati input'!D14,\"\")","v":""}]
[null,null,"Residente in",{"$f":"IF('Dati input'!E15<>\"\",CONCATENATE('Dati input'!E15,\", \",'Dati input'!S15),\"\")","v":""}]
[null,null,"Ditta (eventuale)",{"$f":"IF('Dati input'!D16<>\"\",'Dati input'!D16,\"\")","v":""}]
[null,null,"Partita iva / Codice fiscale",{"$f":"IF('Dati input'!D17<>\"\",'Dati input'!D17,\"\")","v":""}]
[]
[null,null,"(in seguito, Parte Finanziata)\ne\nINTESA SANPAOLO S.p.A. (in seguito \"Banca\")"]
[null,null,{"$f":"CONCATENATE('Dati input'!AL42,'Dati input'!D22,'Dati input'!AL43)","v":"premesso che:\n- la Parte Finanziata ha ottenuto dalla Banca un finanziamento di euro  finalizzato a fare fronte all’emergenza COVID-19, come previsto dall’art. 13, comma 1, lettera m), decreto legge 8 aprile 2020 n. 23, prima della conversione in legge di detto decreto;\n- tenuto conto di quanto previsto dalla nuova lettera m-bis) dell’art. 13, comma 1, del citato decreto legge, convertito, con modificazioni, dalla legge 5 giugno 2020, n. 40, la Parte Finanziata richiede un ulteriore finanziamento al fine di adeguare l’importo complessivamente finanziato alle nuove condizioni introdotte dalla legge di conversione; \nciò premesso, le parti convengono e stipulano quanto segue."}]
[null,null,"***************************\nDOCUMENTO DI SINTESI (\"DDS\")\nN. 1/2020\nCONDIZIONI ECONOMICHE"]
[null,null,{"$f":"CONCATENATE(\"- Durata del finanziamento: \",'Dati input'!AF22,\" mesi, a decorrere dalla data di erogazione del finanziamento, comprensiva di un periodo di \")","v":"- Durata del finanziamento:  mesi, a decorrere dalla data di erogazione del finanziamento, comprensiva di un periodo di "}]
[null,null,"preammortamento."]
[null,null,{"$f":"CONCATENATE(\"- Tasso di interesse: fisso, pari al \",'Dati input'!D30*100,\"% nominale annuo.\")","v":{"$error":"#VALUE!"}}]
[null,null,"- Periodicità rate: mensile posticipata a decorrere dalla data di erogazione del finanziamento, secondo le scadenze che saranno indicate"]
[null,null,"nel Piano di Ammortamento allegato all’eventuale Accettazione della Banca."]
[null,null,"- Pagamento degli interessi: a decorrere dalla data di erogazione."]
[null,null,{"$f":"CONCATENATE(\"- Preammortamento: n. \",'Dati input'!AF23,\" rate iniziali di soli interessi di Euro \",ROUND('Dati input'!D36,2),\" ciascuna.\")","v":{"$error":"#VALUE!"}}]
[null,null,{"$f":"CONCATENATE(\"- Ammortamento: n.\",'Dati input'!AF22-'Dati input'!AF23,\" rate (comprensive di interessi e capitale) di Euro \",ROUND('Dati input'!D37,2),\" ciascuna.\")","v":{"$error":"#VALUE!"}}]
[null,null,"- Interessi di mora: pari al tasso di interesse contrattuale nominale annuo maggiorato di  2 punti percentuali."]
[null,null,{"$f":"CONCATENATE(\"- Tasso annuo effettivo globale (TAEG): alla data odierna \",ROUND('Dati input'!AG36*100,3),\"% annuo.\")","v":"- Tasso annuo effettivo globale (TAEG): alla data odierna 0% annuo."}]
[null,null,"- Spese:\nA) istruttoria: euro 0; \nB) per eventuali volture: euro 0;\n    rimborso spese per invio di comunicazioni previste per legge : euro 0 per ogni invio;\n    rimborso spese per invio di comunicazioni previste per legge con modalità on line: euro 0 per ogni invio;\n    rimborso spese per incasso e avviso di scadenza rata o quietanza di pagamento: euro 0 per ogni invio; \n    rimborso spese per incasso e avviso di scadenza rata o quietanza di pagamento on line: euro 0 per ogni invio;\n    rilascio certificato di sussistenza credito: euro 0.\n    per riesame pratica richiesta dal mutuatario: 0 % sull'importo del capitale residuo al momento della richiesta, col minimo di euro 0\n    (con  eccezione dei casi esenti da spese ai sensi dell'art. 120 quater TUB). Non sono dovute in ogni caso spese per le comunicazioni\n    esenti ai sensi di legge (attualmente art. 127 bis, comma 1 del TUB e art. 8 bis legge n. 40/2007)."]
[]
[]
[]
[]
[]
[]
[null,null,"***************************"]
[null,null,"Le Parti convengono espressamente che le premesse e il Documento di Sintesi sopra riportato costituiscono parte integrante del presente contratto, che è inoltre regolato dai seguenti"]
[null,null,"Termini e condizioni"]
[null,null,"1.   Importo, finalità, garanzia"]
[null,null,{"$f":"CONCATENATE(\"La Banca concede alla Parte Finanziata un finanziamento di euro \",'Dati input'!D23,\" (\",'Dati input'!AQ23,\" euro),  (di seguito\")","v":"La Banca concede alla Parte Finanziata un finanziamento di euro  (ZERO/ euro),  (di seguito"}]
[null,null,"“Finanziamento”) finalizzato a fare fronte all’emergenza COVID-19, come previsto dall’art. 13, comma 1, lettera m) decreto legge 8 aprile 2020, n. 23, convertito in legge, con modificazioni, dalla legge 5 giugno 2020, n. 40 (cd. “Decreto Liquidità”).\nA valere sul presente finanziamento la Parte Fiananziata presenta richiesta di garanzia al Fondo di Garanzia per le Piccole Medie Imprese (legge n. 662/1996), assumendosi ogni conseguente obbligo e responsabilità, come specificato nel successivo art. 7-bis."]
[]
[null,null,"2.   Modalità di erogazione e addebito delle rate"]
[null,null,"L'erogazione sarà effettuata in unica soluzione, a seguito della eventuale conclusione del contratto mediante accettazione da parte della Banca della Proposta Contrattuale presentata dalla Parte Finanziata.\nAi fini dell’erogazione del Finanziamento la Parte Finanziata deve essere titolare di un conto corrente presso Intesa Sanpaolo, a meno che non rivesta la qualità di professionista o di microimpresa (quest’ultima identificata secondo quanto previsto dal D. Lgs. 6/9/2005 n. 206, art. 18, lettera d-bis).  In quest’ultimo caso la stessa potrà scegliere che l’accredito del provento del finanziamento possa avvenire su un conto corrente presso una banca non facente parte del Gruppo Intesa Sanpaolo.\nCiò posto, la Parte Finanziata indica, ai fini dell’erogazione del Finanziamento e dell’addebito delle relative rate, il seguente codice IBAN di un conto a sé intestato:"]
[null,null,{"$f":"CONCATENATE('Dati input'!F25,'Dati input'!G25,'Dati input'!H25,'Dati input'!I25,'Dati input'!J25,'Dati input'!K25,'Dati input'!L25,'Dati input'!M25,'Dati input'!N25,'Dati input'!O25,'Dati input'!P25,'Dati input'!Q25,'Dati input'!R25,'Dati input'!S25,'Dati input'!T25,'Dati input'!U25,'Dati input'!V25,'Dati input'!W25,'Dati input'!X25,'Dati input'!Y25,'Dati input'!Z25,'Dati input'!AA25,'Dati input'!AB25,'Dati input'!AC25,'Dati input'!AD25,'Dati input'!AE25,'Dati input'!AF25)","v":""}]
[null,null,"Qualora al momento dell’erogazione il conto presso Intesa Sanpaolo presenti uno sconfinamento, e cioè un saldo negativo in assenza di fido o in extra-fido (ovvero con utilizzo a debito oltre l'importo dell’affidamento), la Banca procederà con l’emissione di un assegno circolare non trasferibile, di importo pari all’ammontare del Finanziamento, che la Parte Finanziata dovrà ritirare presso la Filiale tenutaria del rapporto. Sul conto sopra indicato verranno comunque addebitate le rate del Finanziamento.\nQualora il conto non sia presso Intesa Sanpaolo, la Parte Finanziata per la domiciliazione delle rate dovrà sottoscrivere un’apposita autorizzazione per l’addebito diretto prima dell’erogazione del Finanziamento."]
[]
[null,null,"3.   Durata e modalità di rimborso"]
[null,null,"La durata del Finanziamento è indicata nel Documento di Sintesi (“DDS”) riportato sul frontespizio del presente contratto.\nLa periodicità delle rate, le modalità di pagamento degli interessi e di rimborso del capitale sono definiti nel DDS.\nLa Banca fornirà un piano di ammortamento dettagliato in occasione dell’eventuale accettazione della Proposta Contrattuale."]
[]
[null,null,"4.   Tasso di interesse"]
[null,null,{"$f":"CONCATENATE(\"Il tasso degli interessi per tutta la durata del Finanziamento è pari al tasso nominale annuo del \",ROUND('Dati input'!D30*100,2),\"%. \nGli interessi di cui al presente articolo saranno calcolati in base ad un mese di 30 giorni con divisore fisso 36.000 su base annua.\",\"\nIl tasso degli interessi del presente finanziamento è calcolato nel rispetto delle previsioni dell’art. 13, comma 1, lettera m) del Decreto Liquidità.\")","v":{"$error":"#VALUE!"}}]
[]
[null,null,"5.   Interessi di mora\nOgni somma dovuta per qualsiasi titolo in dipendenza del presente contratto e non pagata produrrà, dal giorno della scadenza e senza bisogno di costituzione in mora, interessi moratori a carico della Parte Finanziata ed a favore della Banca. Su detti interessi non è consentita la capitalizzazione periodica.  Gli interessi di mora saranno calcolati in base all'effettivo numero dei giorni trascorsi e con divisore fisso 36.500 su base annua.\nLa misura del tasso di mora è definita nel DDS.\n\n6. Rimborso anticipato\nIl rimborso anticipato del finanziamento è consentito, in tutto o in parte, alle seguenti condizioni:\na) che la Parte Finanziata adempia ogni obbligo contrattuale su di essa gravante al momento dell’estinzione anticipata;\nb) che il rimborso anticipato non avvenga in concomitanza con la scadenza di una rata. In caso di rimborso anticipato solo parziale, il relativo importo sarà imputato a riduzione proporzionale delle rate di successiva scadenza, ferma pertanto la durata originaria del Finanziamento.\n\n7.   Obblighi vari della Parte finanziata\nLa Parte finanziata si obbliga, a decorrere dall’accettazione della presente e fino alla definitiva estinzione di tutte le obbligazioni assunte con il presente contratto, a:\na) (nel caso in cui la Parte finanziata sia tenuta, per le vigenti disposizioni di legge, alla redazione e presentazione di un proprio Bilancio) inviare alla Banca i bilanci annuali corredati dalle relazioni del Consiglio di Amministrazione (e, ove esistente, del Collegio Sindacale) entro trenta giorni dalla relativa approvazione da parte dell'Assemblea, nonché l'ordine del giorno delle Assemblee ordinarie e di eventuali Assemblee straordinarie non appena convocate, con obbligo di inviare altresì il relativo verbale entro trenta giorni dall'Assemblea; (nel caso in cui la Parte finanziata non sia tenuta, per le vigenti disposizioni di legge, alla redazione e presentazione di un proprio Bilancio) inviare la documentazione relativa alla propria situazione patrimoniale, finanziaria ed economica ovvero la dichiarazione dei redditi per ogni anno successivo alla stipula del presente finanziamento e fino alla sua estinzione;"]
[]
[]
[]
[]
[]
[]
[null,null,"b) fornire immediatamente alla Banca, in caso di richiesta di quest'ultima, le dichiarazioni, la documentazione ed ogni altra notizia o dato sulle proprie condizioni patrimoniali, economiche e finanziarie in conformità a quanto previsto dalle istruzioni impartite dall'Organo di Vigilanza delle Banche;\nc) comunicare immediatamente alla Banca ogni cambiamento o evento di carattere tecnico, amministrativo, giuridico o contenzioso, ancorché notorio, che possa modificare sostanzialmente in senso negativo la situazione patrimoniale, economica o finanziaria o possa comunque pregiudicare la capacità operativa; tra tali eventi si citano, in via esemplificativa e non esaustiva: l’instaurarsi di azioni esecutive, il verificarsi di circostanze che possano dar luogo al recesso di uno o più soci, il ricevimento della comunicazione di recesso da parte di uno o più soci, la deliberazione di destinazione di uno o più patrimoni ad uno o più specifici affari a norma dell’art. 2447 bis c.c.; \nLa banca e la Parte Finanziata convengono espressamente che gli obblighi di cui al presente articolo sono considerati essenziali, l’inadempimento o l’adempimento solo parziale di anche uno solo degli stessi costituirà, nei limiti previsti dal successivo art.9, causa di risoluzione del contratto o di recesso da esso."]
[]
[null,null,"7 Bis.  Obblighi derivanti dalla garanzia richiesta al Fondo di Garanzia per le PMI\nIn considerazione della natura agevolata dell'intervento del Fondo di Garanzia e delle dichiarazioni rese in sede di richiesta della garanzia, la Parte Finanziata si obbliga a: \na)     non mutare la finalità dell’operazione finanziaria;\nb)     applicare - ai sensi della legge n. 300/1970, art.36- nei confronti dei lavoratori dipendenti condizioni non inferiori a quelle risultanti dai contratti collettivi di lavoro della categoria e della zona; \nc)     operare nel pieno rispetto delle vigente norme edilizie, urbanistiche e di salvaguardia ambientale; \nd)     consentire ispezioni e controlli da parte degli Enti preposti e fornire i dati e le informazioni richieste dagli stessi; \ne)     in generale, ad ottemperare agli impegni assunti in sede di richiesta dell’intervento del Fondo di Garanzia le cui disposizioni dichiara di ben conoscere. \nLa Parte Finanziata dichiara, assumendosi ogni responsabilità al riguardo, che l'importo complessivo dei finanziamenti richiesti a questa o ad altre banche, ai sensi dell’art. 13, comma 1, lettera m) del Decreto Liquidità, non è superiore agli importi previsti dall’art. 13, comma 1, lettera c) numeri 1) e 2) del Decreto Liquidità, e comunque non supera il limite di 30.000 euro previsto dal citato art. 13, comma 1, lettera m).\nLa Parte Finanziata prende atto che, anche in caso di attività di controllo da parte del Fondo di Garanzia, i dati forniti in sede di richiesta della garanzia e l’effettiva destinazione dell’agevolazione del Fondo dovranno essere puntualmente documentati e che il mancato rispetto di tale obbligo potrà comportare la revoca della concessione dell’agevolazione e il pagamento a carico della Parte Finanziata delle sanzioni previste dalla legge. \n\n8.   Indilazionabilità degli obblighi della Parte Finanziata \nL'obbligo della Parte Finanziata di pagare alle date fissate tutte le somme dovute a titolo di rimborso del capitale, di pagamento degli interessi o ad altro titolo e, più in generale, l'adempimento degli obblighi di cui al presente contratto non potrà essere sospeso o ritardato neanche per il caso di contestazione, pure giudiziale, che fosse sollevata dalla Parte Finanziata, da garanti o da terzi."]
[]
[null,null,"9.   Decadenza dal beneficio del termine, risoluzione del contratto e recesso\nA. Si conviene espressamente che costituirà causa di decadenza della Parte finanziata dal beneficio del termine, senza che occorra pronuncia giudiziale, il verificarsi di una qualsiasi delle ipotesi previste dall'art. 1186 c.c.. Costituirà altresì causa di decadenza della Parte finanziata dal beneficio del termine  richiesta di ammissione a procedure concorsuali o a procedure, anche di natura stragiudiziale, aventi effetti analoghi o che comunque comportino il soddisfacimento dei debiti e delle obbligazioni in genere con modalità diverse da quelle normali, ivi inclusa la cessione dei beni ai creditori.  \nB. Si conviene espressamente che abbia luogo la risoluzione del contratto, a norma dell'art. 1456 c.c., sia in caso di inadempimento dell’obbligo di pagare tutto quanto dovuto alla Banca con le modalità e nei termini previsti dagli artt. 3 e 6, sia in caso di inadempimento di anche uno solo degli obblighi di cui all'art. 7, lettere a), b), c),  e di cui all'art.7bis,  la risoluzione espressa potrà essere dichiarata anche qualora situazioni, dati o conti storici, presentati al fine di ottenere il finanziamento o nel corso del medesimo, risultino poi non corrispondenti al vero.\nC. Si conviene espressamente la facoltà della Banca di recedere dal contratto di finanziamento, a norma dell'art. 1373 c.c., al verificarsi, oltre che di qualunque causa di scioglimento dell’impresa, di uno qualsiasi dei seguenti eventi riguardanti la Parte Finanziata: \na) convocazione di assemblea per deliberare la messa in liquidazione; \nb) fusione, scissione, cessione o conferimento di azienda oppure di  ramo d’azienda non previamente autorizzate per iscritto dalla Banca;\nc) esistenza di formalità, ancorché comunicate ai sensi dell'art. 7, che, ad insindacabile giudizio della Banca, possano risultare pregiudizievoli per la situazione legale, patrimoniale, economica, finanziaria della Parte Finanziata quali, in via esemplificativa e non esaustiva, emissione di decreti ingiuntivi, provvedimenti di sequestro conservativo sui beni sociali, costituzione di patrimoni destinati ad uno specifico affare a norma dell’art. 2447 bis c.c. ecc.; \nd) inadempimento di obbligazioni di natura creditizia, finanziaria, nonché di garanzia, assunte nei confronti di qualsiasi soggetto; \ne) decadenza dal beneficio del termine, risoluzione o recesso per fatto imputabile alla Parte Finanziata rispetto a qualsiasi terzo finanziatore e relativamente a qualsiasi contratto stipulato; \n\nLa decadenza dal beneficio del termine, la risoluzione del contratto o il recesso della Banca dal contratto stesso verranno comunicate per lettera raccomandata a.r. e avranno effetto nel momento in cui la Parte Finanziata avrà ricevuto la relativa comunicazione, ovvero questa venga restituita al mittente per compiuta giacenza."]
[]
[]
[]
[]
[]
[]
[null,null,"Verificandosi una qualunque ipotesi di decadenza dal beneficio del termine, risoluzione, recesso, previste dal presente articolo, la Parte Finanziata dovrà rimborsare tutto quanto dovuto alla Banca in dipendenza del presente contratto ivi compresi gli eventuali interessi di mora nella misura di prevista dal precedente art. 5, entro 10 (dieci) giorni lavorativi bancari dalla ricezione della relativa richiesta della Banca.\n\n10.   Spese\nPer tutta la durata del finanziamento sono a carico della Parte Finanziata le spese definite nel DDS.\nPer avere la rendicontazione on line è necessario aderire ai servizi a distanza della Banca e utilizzare le relative credenziali di accesso. \nPer maggiori informazioni sui servizi a distanza consultare i fogli informativi dedicati.\nLa Banca ha la facoltà di variare, in senso sfavorevole alla Parte Finanziata esclusivamente le spese indicate alla lettera B) del DDS; tali variazioni saranno applicate rispettando le prescrizioni di cui all'art. 118 del D. Lgs. n. 385/1993 (TUB) e successive modifiche e integrazioni. In caso di esercizio della suddetta facoltà, è Vostro diritto di recedere dal rapporto oggetto di modifica, senza spese, entro la data prevista per l’applicazione delle modifiche e di ottenere, in sede di liquidazione dello stesso, l'applicazione delle condizioni precedentemente praticate."]
[]
[null,null,"11.   Vincolo successorio - accolli\nLe obbligazioni tutte assunte dalla Parte Finanziata si intendono costituite con vincolo solidale ed indivisibile anche per eventuali successori ed aventi causa a qualsiasi titolo. \nStante la specificità della garanzia, le parti convengano che l’accollo del mutuo possa avvenire solamente senza liberazione del debitore originario e previo parere favorevole del Fondo di Garanzia. \n \n12.   Prova del credito\nGli estratti conto, le registrazioni ed in genere le risultanze contabili della Banca fanno prova del credito per capitale, interessi e quant'altro dovuto in dipendenza del presente contratto .\n \n13.   Legge applicabile e foro competente\nIl presente contratto è soggetto alla legge italiana. Per ogni e qualsiasi controversia, giudizio e procedimento che dovesse sorgere in dipendenza del presente contratto, sarà competente, il Foro stabilito dal Codice di Procedura Civile (artt.18 e sgg.).\n\n14.   Reclami e procedure di risoluzione stragiudiziale delle controversie. \nLa Parte finanziata può presentare un reclamo alla Banca con le modalità indicate nel Foglio informativo, disponibile nelle Filiali e sul sito Internet della Banca.\nSe la Parte finanziata non è soddisfatta della risposta ricevuta o non ha ricevuto risposta entro 30 giorni, prima di ricorrere al giudice può rivolgersi all’Arbitro Bancario Finanziario (ABF); per sapere come rivolgersi all’Arbitro e l’ambito della sua competenza si può consultare il sito www.arbitrobancariofinanziario.it, chiedere presso le Filiali della Banca d’Italia, oppure chiedere alla Banca.\nAi fini della risoluzione stragiudiziale delle controversie che possano sorgere dal presente contratto, la Parte Finanziata e la Banca, nel caso di esperimento del procedimento di mediazione nei termini previsti dalla normativa vigente, possono ricorrere: \n- al Conciliatore BancarioFinanziario – Associazione per la soluzione delle controversie bancarie, finanziarie e societarie – ADR; il Regolamento del Conciliatore BancarioFinanziario può essere consultato sul sito www.conciliatorebancario.it o chiesto alla Banca; \n- oppure a un altro organismo iscritto nell’apposito registro tenuto dal Ministero della Giustizia e specializzato in materia bancaria e finanziaria."]
[]
[null,null,"15.   Imputazione dei pagamenti \nSalva diversa determinazione della Banca, qualsiasi versamento effettuato dalla Parte Finanziata o dagli eventuali garanti sarà imputato innanzitutto al rimborso di spese ed oneri, al pagamento di accessori ed interessi e, per il rimanente, in conto capitale.\n \n16.   Elezione di domicilio \nLa Banca elegge domicilio presso la propria sede legale in Torino, Piazza San Carlo, 156  e quanto alla Parte Finanziata presso la sede o residenza dichiarata nel presente atto e, in difetto, presso la Segreteria del Comune della propria sede ai sensi dell'art. 143 c.p.c..\n \n17.   Trattamento tributario \nE' a carico della Parte Finanziata qualsivoglia onere per imposte, tasse, diritti e ritenute che dovesse essere applicato in relazione al presente contratto ed ai pagamenti da eseguirsi in base allo stesso, restando altresì inteso che la Banca dovrà ricevere importi, al netto di qualsivoglia onere, pari a quelli previsti. Ogni restrizione o proibizione di legge che impedisse alla Parte Finanziata di accollarsi tali oneri, obbligherà la stessa, ove richiesto per iscritto, a rimborsare l'importo capitale, oltre agli interessi e ad ogni altra somma dovuta in dipendenza dal presente contratto di finanziamento, entro il termine indicato nella relativa comunicazione."]
[]
[]
[]
[]
[]
[]
[null,null,"18.   Informativa sulla surrogazione nei contratti di finanziamento \nNel caso in cui la Parte finanziata, se persona fisica o micro-impresa (come definita dall’art. 1, comma 1, lettera t del D.Lgs  n. 11/2010), per rimborsare il presente finanziamento ottenga un nuovo mutuo da un’altra banca o intermediario finanziario, nei casi previsti dall’art. 120 quater del T.U.B., la Parte finanziata stessa non dovrà sostenere alcun costo (quali, a titolo di esempio: commissioni, spese, oneri o penali), neanche indirettamente. La legge prevede che il nuovo contratto così stipulato mantenga le garanzie reali e personali del precedente.\n\n\nCon la seguente firma il Cliente approva tutti i termini e le condizioni sopra riportati."]
[]
[]
[]
[]
[]
[]
[null,null,"Il Cliente approva specificamente le seguenti norme, ai sensi delle vigenti disposizioni (art.1341 codice civile, testo unico bancario e relative disposizioni di attuazione):\n5) interessi di mora e loro modalità di calcolo\n7) Obblighi vari. \n7bis) obblighi derivanti dall'agevolazione \n8) Indilazionabilità degli obblighi della Parte Finanziata.\n9) Decadenza dal beneficio del termine, risoluzione del contratto, recesso e capitalizzazione degli interessi a seguito della risoluzione per inadempimento. \n10) Spese.  \n11)Accolli \n12) Prova del credito."]
[]
[]
[]
[]
[]
[]
[null,null,"Il Cliente si impegna a conservare il modulo cartaceo sottoscritto e a consegnarlo alla Banca alla prima occasione utile, successivamente al termine dello stato di emergenza; il Cliente inoltre prende atto che l’eventuale accettazione della Banca sarà fornita su supporto durevole (file in formato PDF) e trasmessa a mezzo di posta elettronica, e che alla prima occasione utile, successivamente al termine dello stato di emergenza, verrà consegnata una copia cartacea della stessa."]